{"text_format":"1","workbook":"xlsx","n_sheets":4,"sheets":["Instructions","Summary","Data","Sheet1"],"not_rendered":{"charts":0,"images":2,"macros":1,"external_links":1,"defined_names":37,"comments":0,"pivot_tables":0},"unopened":[],"bounds":{"document_bytes":16777216,"sheet_cells":100000,"rows_first":2000,"rows_last":500,"rows_between":2000,"halvings":0,"cell_chars":16384,"cell_head_chars":4096},"cells_cut":0,"cells_raw":0,"read":"whole","date_system":"1900"}

{"sheet":"Instructions","index":0,"n_rows":24,"n_cols":7,"rows_kept":24,"cut":false,"hidden":false,"merged":[]}
[null,null,null,null,null,null,{"$f":"Summary!PayItemFile","v":"N:\\CFL-DPIT\\Excel\\PayItems24.csv"}]
[null,"Instructions"]
[null,1,"On the Summary Tab, click the \"Browse for Pay Item\" button, hit the \"Browse for Pay Item File\" in the dialog box and browse to N:\\CFL-DPIT\\Excel\\PayItems24.csv and select \"Open\" or if you downloaded the file off the network browse to the location to where it was saved."]
[null,null,"Click the \"Return to Excel\" button."]
[]
[null,2,"On the Summary Tab, click the \"Add/Remove Pay Items\" button."]
[null,null,"Pay items are broken out by pay item categories.  Choose the desired pay item category."]
[null,null,"Select the desired pay item and select \"Add Item\".  Repeat for all required pay items."]
[null,null,"To remove pay items click the \"Delete a pay item already placed in sheet\" button and select the desired pay item and click the \"delete item\" button.  Click the \"Close\" button to close the dialog box."]
[null,null,"When all desired pay items have been added click the \"Close\" button."]
[]
[null,3,"Add station,side, MUTCD reference, quantities and road classification.  If a special sign description is needed click on the Data tab and add description and sign size.  Add and remove schedules to tables using the buttons at the top of the Summary tab.  Hide and unhide rows to tables using the buttons at the top of the Summary tab.  Merge and center title over the entire table width."]
[]
[null,4,"Using the Engineer's Estimate Manual (https://highways.dot.gov/federal-lands/estimates/cfl-estimate-manual), determine the correct rounding % and round up values for each item."]
[]
[]
[]
[]
[]
[]
[]
[]
[null,null,"The Bid schedule and allowance quantities will be automatically calculated at the bottom but should not be included in tabulation sheets."]
[null,5,"DO NOT MANUALLY ADD ANY COLUMNS TO THE SPREADSHEET."]

{"sheet":"Summary","index":1,"n_rows":117,"n_cols":13,"rows_kept":117,"cut":false,"hidden":false,"merged":[[4,3,4,7],[6,3,8,3],[6,4,8,4],[2,12,2,15],[6,2,8,2],[6,12,7,12],[6,8,7,8],[5,9,7,9],[5,3,5,7],[6,5,8,5],[6,6,8,6],[6,7,7,7],[113,0,113,2],[108,0,108,2],[103,0,103,2],[39,2,39,7],[101,2,101,7],[70,2,70,7]]}
[null,null,null,null,"N:\\CFL-DPIT\\Excel\\PayItems24.csv"]
[null,null,null,null,null,null,null,null,"Leave this column HIDDEN!!! Do not delete"]
["Check Column - do not delete",null,null,null,null,null,null,null,{"$f":"IF(ISERROR(VLOOKUP(I2,Data!$A:$C,2,FALSE)),\"\",VLOOKUP(I2,Data!$A:$C,2,FALSE))","v":""},null,null,null,"Do not manually add columns to the spreadsheet.  The macro will become inoperable if columns are added to the left of the remarks column."]
[]
[null,null,null,"PERMANENT SIGN SUMMARY",null,null,null,null,null,null,null,null,"<-------------Remember to Merge and Center the Title over the entire table"]
[null,null,null,"Item Number",null,null,null,null,{"$f":"I2","v":"Leave this column HIDDEN!!! Do not delete"},"Remarks"]
[null,null,"Schedule","Station","Side","MUTCD Reference","Description","Sign Panel",{"$f":"IF(ISBLANK(I2),\"\",LOOKUP(I2,'[1]FP24 Pay Items'!$B$1:$B$65536,'[1]FP24 Pay Items'!$E$1:$E$65536))","v":"FUNDING RECLASSIFICATION"},null,null,null,"Road Classification            (Single Lane, Multi-lane, Expressway, Freeway, Minimum, Oversized, Shared Use Path)"]
[]
[null,null,null,null,null,null,null,"in x in",{"$f":"IF(ISBLANK(I2),\"\",LOOKUP(I2,'[1]FP24 Pay Items'!$B$1:$B$65536,'[1]FP24 Pay Items'!$F$1:$F$65536))","v":"LPSM"}]
[]
[null,null,null,null,null,null,{"$f":"IF(F11=\"\",\"\",VLOOKUP(F11,Data!I:J,2,FALSE))","v":""},{"$f":"IF(F11=\"\",\"\",HLOOKUP($M11,Data!$I$2:$Q$781,MATCH($F11,Data!$I$2:$I$781,0),FALSE))","v":""}]
[null,null,null,null,null,null,{"$f":"IF(F12=\"\",\"\",VLOOKUP(F12,Data!I:J,2,FALSE))","v":""},{"$f":"IF(F12=\"\",\"\",HLOOKUP($M12,Data!$I$2:$Q$781,MATCH($F12,Data!$I$2:$I$781,0),FALSE))","v":""}]
[null,null,null,null,null,null,{"$f":"IF(F13=\"\",\"\",VLOOKUP(F13,Data!I:J,2,FALSE))","v":""},{"$f":"IF(F13=\"\",\"\",HLOOKUP($M13,Data!$I$2:$Q$781,MATCH($F13,Data!$I$2:$I$781,0),FALSE))","v":""}]
[null,null,null,null,null,null,{"$f":"IF(F14=\"\",\"\",VLOOKUP(F14,Data!I:J,2,FALSE))","v":""},{"$f":"IF(F14=\"\",\"\",HLOOKUP($M14,Data!$I$2:$Q$781,MATCH($F14,Data!$I$2:$I$781,0),FALSE))","v":""}]
[null,null,null,null,null,null,{"$f":"IF(F15=\"\",\"\",VLOOKUP(F15,Data!I:J,2,FALSE))","v":""},{"$f":"IF(F15=\"\",\"\",HLOOKUP($M15,Data!$I$2:$Q$781,MATCH($F15,Data!$I$2:$I$781,0),FALSE))","v":""}]
[null,null,null,null,null,null,{"$f":"IF(F16=\"\",\"\",VLOOKUP(F16,Data!I:J,2,FALSE))","v":""},{"$f":"IF(F16=\"\",\"\",HLOOKUP($M16,Data!$I$2:$Q$781,MATCH($F16,Data!$I$2:$I$781,0),FALSE))","v":""}]
[null,null,null,null,null,null,{"$f":"IF(F17=\"\",\"\",VLOOKUP(F17,Data!I:J,2,FALSE))","v":""},{"$f":"IF(F17=\"\",\"\",HLOOKUP($M17,Data!$I$2:$Q$781,MATCH($F17,Data!$I$2:$I$781,0),FALSE))","v":""}]
[null,null,null,null,null,null,{"$f":"IF(F18=\"\",\"\",VLOOKUP(F18,Data!I:J,2,FALSE))","v":""},{"$f":"IF(F18=\"\",\"\",HLOOKUP($M18,Data!$I$2:$Q$781,MATCH($F18,Data!$I$2:$I$781,0),FALSE))","v":""}]
[null,null,null,null,null,null,{"$f":"IF(F19=\"\",\"\",VLOOKUP(F19,Data!I:J,2,FALSE))","v":""},{"$f":"IF(F19=\"\",\"\",HLOOKUP($M19,Data!$I$2:$Q$781,MATCH($F19,Data!$I$2:$I$781,0),FALSE))","v":""}]
[null,null,null,null,null,null,{"$f":"IF(F20=\"\",\"\",VLOOKUP(F20,Data!I:J,2,FALSE))","v":""},{"$f":"IF(F20=\"\",\"\",HLOOKUP($M20,Data!$I$2:$Q$781,MATCH($F20,Data!$I$2:$I$781,0),FALSE))","v":""}]
[null,null,null,null,null,null,{"$f":"IF(F21=\"\",\"\",VLOOKUP(F21,Data!I:J,2,FALSE))","v":""},{"$f":"IF(F21=\"\",\"\",HLOOKUP($M21,Data!$I$2:$Q$781,MATCH($F21,Data!$I$2:$I$781,0),FALSE))","v":""}]
[null,null,null,null,null,null,{"$f":"IF(F22=\"\",\"\",VLOOKUP(F22,Data!I:J,2,FALSE))","v":""},{"$f":"IF(F22=\"\",\"\",HLOOKUP($M22,Data!$I$2:$Q$781,MATCH($F22,Data!$I$2:$I$781,0),FALSE))","v":""}]
[null,null,null,null,null,null,{"$f":"IF(F23=\"\",\"\",VLOOKUP(F23,Data!I:J,2,FALSE))","v":""},{"$f":"IF(F23=\"\",\"\",HLOOKUP($M23,Data!$I$2:$Q$781,MATCH($F23,Data!$I$2:$I$781,0),FALSE))","v":""}]
[null,null,null,null,null,null,{"$f":"IF(F24=\"\",\"\",VLOOKUP(F24,Data!I:J,2,FALSE))","v":""},{"$f":"IF(F24=\"\",\"\",HLOOKUP($M24,Data!$I$2:$Q$781,MATCH($F24,Data!$I$2:$I$781,0),FALSE))","v":""}]
[null,null,null,null,null,null,{"$f":"IF(F25=\"\",\"\",VLOOKUP(F25,Data!I:J,2,FALSE))","v":""},{"$f":"IF(F25=\"\",\"\",HLOOKUP($M25,Data!$I$2:$Q$781,MATCH($F25,Data!$I$2:$I$781,0),FALSE))","v":""}]
[null,null,null,null,null,null,{"$f":"IF(F26=\"\",\"\",VLOOKUP(F26,Data!I:J,2,FALSE))","v":""},{"$f":"IF(F26=\"\",\"\",HLOOKUP($M26,Data!$I$2:$Q$781,MATCH($F26,Data!$I$2:$I$781,0),FALSE))","v":""}]
[null,null,null,null,null,null,{"$f":"IF(F27=\"\",\"\",VLOOKUP(F27,Data!I:J,2,FALSE))","v":""},{"$f":"IF(F27=\"\",\"\",HLOOKUP($M27,Data!$I$2:$Q$781,MATCH($F27,Data!$I$2:$I$781,0),FALSE))","v":""}]
[null,null,null,null,null,null,{"$f":"IF(F28=\"\",\"\",VLOOKUP(F28,Data!I:J,2,FALSE))","v":""},{"$f":"IF(F28=\"\",\"\",HLOOKUP($M28,Data!$I$2:$Q$781,MATCH($F28,Data!$I$2:$I$781,0),FALSE))","v":""}]
[null,null,null,null,null,null,{"$f":"IF(F29=\"\",\"\",VLOOKUP(F29,Data!I:J,2,FALSE))","v":""},{"$f":"IF(F29=\"\",\"\",HLOOKUP($M29,Data!$I$2:$Q$781,MATCH($F29,Data!$I$2:$I$781,0),FALSE))","v":""}]
[null,null,null,null,null,null,{"$f":"IF(F30=\"\",\"\",VLOOKUP(F30,Data!I:J,2,FALSE))","v":""},{"$f":"IF(F30=\"\",\"\",HLOOKUP($M30,Data!$I$2:$Q$781,MATCH($F30,Data!$I$2:$I$781,0),FALSE))","v":""}]
[null,null,null,null,null,null,{"$f":"IF(F31=\"\",\"\",VLOOKUP(F31,Data!I:J,2,FALSE))","v":""},{"$f":"IF(F31=\"\",\"\",HLOOKUP($M31,Data!$I$2:$Q$781,MATCH($F31,Data!$I$2:$I$781,0),FALSE))","v":""}]
[null,null,null,null,null,null,{"$f":"IF(F32=\"\",\"\",VLOOKUP(F32,Data!I:J,2,FALSE))","v":""},{"$f":"IF(F32=\"\",\"\",HLOOKUP($M32,Data!$I$2:$Q$781,MATCH($F32,Data!$I$2:$I$781,0),FALSE))","v":""}]
[null,null,null,null,null,null,{"$f":"IF(F33=\"\",\"\",VLOOKUP(F33,Data!I:J,2,FALSE))","v":""},{"$f":"IF(F33=\"\",\"\",HLOOKUP($M33,Data!$I$2:$Q$781,MATCH($F33,Data!$I$2:$I$781,0),FALSE))","v":""}]
[null,null,null,null,null,null,{"$f":"IF(F34=\"\",\"\",VLOOKUP(F34,Data!I:J,2,FALSE))","v":""},{"$f":"IF(F34=\"\",\"\",HLOOKUP($M34,Data!$I$2:$Q$781,MATCH($F34,Data!$I$2:$I$781,0),FALSE))","v":""}]
[null,null,null,null,null,null,{"$f":"IF(F35=\"\",\"\",VLOOKUP(F35,Data!I:J,2,FALSE))","v":""},{"$f":"IF(F35=\"\",\"\",HLOOKUP($M35,Data!$I$2:$Q$781,MATCH($F35,Data!$I$2:$I$781,0),FALSE))","v":""}]
[null,null,null,null,null,null,{"$f":"IF(F36=\"\",\"\",VLOOKUP(F36,Data!I:J,2,FALSE))","v":""},{"$f":"IF(F36=\"\",\"\",HLOOKUP($M36,Data!$I$2:$Q$781,MATCH($F36,Data!$I$2:$I$781,0),FALSE))","v":""}]
[null,null,null,null,null,null,{"$f":"IF(F37=\"\",\"\",VLOOKUP(F37,Data!I:J,2,FALSE))","v":""},{"$f":"IF(F37=\"\",\"\",HLOOKUP($M37,Data!$I$2:$Q$781,MATCH($F37,Data!$I$2:$I$781,0),FALSE))","v":""}]
[null,null,null,null,null,null,{"$f":"IF(F38=\"\",\"\",VLOOKUP(F38,Data!I:J,2,FALSE))","v":""},{"$f":"IF(F38=\"\",\"\",HLOOKUP($M38,Data!$I$2:$Q$781,MATCH($F38,Data!$I$2:$I$781,0),FALSE))","v":""}]
[]
[null,null,{"$f":"IF(AND(Data!$D$2<=1,Data!$G$2=1),\"TOTAL\",IF(AND(Data!$D$2<=1,Data!$G$2>1),\"SCHEDULE A TOTAL\",IF(AND(Data!$D$2>1,Data!$G$2=1),\"TOTALS\",IF(AND(Data!$D$2=2,Data!$G$2>=2),\"SCHEDULE A TOTALS\"))))","v":"TOTAL"},null,null,null,null,null,{"$f":"IF(I$9=\"LPSM\",\"ALL\",SUM(I$10:I$39))","v":"ALL"}]
[]
[null,null,null,null,null,null,{"$f":"IF(F42=\"\",\"\",VLOOKUP(F42,Data!I:J,2,FALSE))","v":""},{"$f":"IF(F42=\"\",\"\",HLOOKUP($M42,Data!$I$2:$Q$781,MATCH($F42,Data!$I$2:$I$781,0),FALSE))","v":""}]
[null,null,null,null,null,null,{"$f":"IF(F43=\"\",\"\",VLOOKUP(F43,Data!I:J,2,FALSE))","v":""},{"$f":"IF(F43=\"\",\"\",HLOOKUP($M43,Data!$I$2:$Q$781,MATCH($F43,Data!$I$2:$I$781,0),FALSE))","v":""}]
[null,null,null,null,null,null,{"$f":"IF(F44=\"\",\"\",VLOOKUP(F44,Data!I:J,2,FALSE))","v":""},{"$f":"IF(F44=\"\",\"\",HLOOKUP($M44,Data!$I$2:$Q$781,MATCH($F44,Data!$I$2:$I$781,0),FALSE))","v":""}]
[null,null,null,null,null,null,{"$f":"IF(F45=\"\",\"\",VLOOKUP(F45,Data!I:J,2,FALSE))","v":""},{"$f":"IF(F45=\"\",\"\",HLOOKUP($M45,Data!$I$2:$Q$781,MATCH($F45,Data!$I$2:$I$781,0),FALSE))","v":""}]
[null,null,null,null,null,null,{"$f":"IF(F46=\"\",\"\",VLOOKUP(F46,Data!I:J,2,FALSE))","v":""},{"$f":"IF(F46=\"\",\"\",HLOOKUP($M46,Data!$I$2:$Q$781,MATCH($F46,Data!$I$2:$I$781,0),FALSE))","v":""}]
[null,null,null,null,null,null,{"$f":"IF(F47=\"\",\"\",VLOOKUP(F47,Data!I:J,2,FALSE))","v":""},{"$f":"IF(F47=\"\",\"\",HLOOKUP($M47,Data!$I$2:$Q$781,MATCH($F47,Data!$I$2:$I$781,0),FALSE))","v":""}]
[null,null,null,null,null,null,{"$f":"IF(F48=\"\",\"\",VLOOKUP(F48,Data!I:J,2,FALSE))","v":""},{"$f":"IF(F48=\"\",\"\",HLOOKUP($M48,Data!$I$2:$Q$781,MATCH($F48,Data!$I$2:$I$781,0),FALSE))","v":""}]
[null,null,null,null,null,null,{"$f":"IF(F49=\"\",\"\",VLOOKUP(F49,Data!I:J,2,FALSE))","v":""},{"$f":"IF(F49=\"\",\"\",HLOOKUP($M49,Data!$I$2:$Q$781,MATCH($F49,Data!$I$2:$I$781,0),FALSE))","v":""}]
[null,null,null,null,null,null,{"$f":"IF(F50=\"\",\"\",VLOOKUP(F50,Data!I:J,2,FALSE))","v":""},{"$f":"IF(F50=\"\",\"\",HLOOKUP($M50,Data!$I$2:$Q$781,MATCH($F50,Data!$I$2:$I$781,0),FALSE))","v":""}]
[null,null,null,null,null,null,{"$f":"IF(F51=\"\",\"\",VLOOKUP(F51,Data!I:J,2,FALSE))","v":""},{"$f":"IF(F51=\"\",\"\",HLOOKUP($M51,Data!$I$2:$Q$781,MATCH($F51,Data!$I$2:$I$781,0),FALSE))","v":""}]
[null,null,null,null,null,null,{"$f":"IF(F52=\"\",\"\",VLOOKUP(F52,Data!I:J,2,FALSE))","v":""},{"$f":"IF(F52=\"\",\"\",HLOOKUP($M52,Data!$I$2:$Q$781,MATCH($F52,Data!$I$2:$I$781,0),FALSE))","v":""}]
[null,null,null,null,null,null,{"$f":"IF(F53=\"\",\"\",VLOOKUP(F53,Data!I:J,2,FALSE))","v":""},{"$f":"IF(F53=\"\",\"\",HLOOKUP($M53,Data!$I$2:$Q$781,MATCH($F53,Data!$I$2:$I$781,0),FALSE))","v":""}]
[null,null,null,null,null,null,{"$f":"IF(F54=\"\",\"\",VLOOKUP(F54,Data!I:J,2,FALSE))","v":""},{"$f":"IF(F54=\"\",\"\",HLOOKUP($M54,Data!$I$2:$Q$781,MATCH($F54,Data!$I$2:$I$781,0),FALSE))","v":""}]
[null,null,null,null,null,null,{"$f":"IF(F55=\"\",\"\",VLOOKUP(F55,Data!I:J,2,FALSE))","v":""},{"$f":"IF(F55=\"\",\"\",HLOOKUP($M55,Data!$I$2:$Q$781,MATCH($F55,Data!$I$2:$I$781,0),FALSE))","v":""}]
[null,null,null,null,null,null,{"$f":"IF(F56=\"\",\"\",VLOOKUP(F56,Data!I:J,2,FALSE))","v":""},{"$f":"IF(F56=\"\",\"\",HLOOKUP($M56,Data!$I$2:$Q$781,MATCH($F56,Data!$I$2:$I$781,0),FALSE))","v":""}]
[null,null,null,null,null,null,{"$f":"IF(F57=\"\",\"\",VLOOKUP(F57,Data!I:J,2,FALSE))","v":""},{"$f":"IF(F57=\"\",\"\",HLOOKUP($M57,Data!$I$2:$Q$781,MATCH($F57,Data!$I$2:$I$781,0),FALSE))","v":""}]
[null,null,null,null,null,null,{"$f":"IF(F58=\"\",\"\",VLOOKUP(F58,Data!I:J,2,FALSE))","v":""},{"$f":"IF(F58=\"\",\"\",HLOOKUP($M58,Data!$I$2:$Q$781,MATCH($F58,Data!$I$2:$I$781,0),FALSE))","v":""}]
[null,null,null,null,null,null,{"$f":"IF(F59=\"\",\"\",VLOOKUP(F59,Data!I:J,2,FALSE))","v":""},{"$f":"IF(F59=\"\",\"\",HLOOKUP($M59,Data!$I$2:$Q$781,MATCH($F59,Data!$I$2:$I$781,0),FALSE))","v":""}]
[null,null,null,null,null,null,{"$f":"IF(F60=\"\",\"\",VLOOKUP(F60,Data!I:J,2,FALSE))","v":""},{"$f":"IF(F60=\"\",\"\",HLOOKUP($M60,Data!$I$2:$Q$781,MATCH($F60,Data!$I$2:$I$781,0),FALSE))","v":""}]
[null,null,null,null,null,null,{"$f":"IF(F61=\"\",\"\",VLOOKUP(F61,Data!I:J,2,FALSE))","v":""},{"$f":"IF(F61=\"\",\"\",HLOOKUP($M61,Data!$I$2:$Q$781,MATCH($F61,Data!$I$2:$I$781,0),FALSE))","v":""}]
[null,null,null,null,null,null,{"$f":"IF(F62=\"\",\"\",VLOOKUP(F62,Data!I:J,2,FALSE))","v":""},{"$f":"IF(F62=\"\",\"\",HLOOKUP($M62,Data!$I$2:$Q$781,MATCH($F62,Data!$I$2:$I$781,0),FALSE))","v":""}]
[null,null,null,null,null,null,{"$f":"IF(F63=\"\",\"\",VLOOKUP(F63,Data!I:J,2,FALSE))","v":""},{"$f":"IF(F63=\"\",\"\",HLOOKUP($M63,Data!$I$2:$Q$781,MATCH($F63,Data!$I$2:$I$781,0),FALSE))","v":""}]
[null,null,null,null,null,null,{"$f":"IF(F64=\"\",\"\",VLOOKUP(F64,Data!I:J,2,FALSE))","v":""},{"$f":"IF(F64=\"\",\"\",HLOOKUP($M64,Data!$I$2:$Q$781,MATCH($F64,Data!$I$2:$I$781,0),FALSE))","v":""}]
[null,null,null,null,null,null,{"$f":"IF(F65=\"\",\"\",VLOOKUP(F65,Data!I:J,2,FALSE))","v":""},{"$f":"IF(F65=\"\",\"\",HLOOKUP($M65,Data!$I$2:$Q$781,MATCH($F65,Data!$I$2:$I$781,0),FALSE))","v":""}]
[null,null,null,null,null,null,{"$f":"IF(F66=\"\",\"\",VLOOKUP(F66,Data!I:J,2,FALSE))","v":""},{"$f":"IF(F66=\"\",\"\",HLOOKUP($M66,Data!$I$2:$Q$781,MATCH($F66,Data!$I$2:$I$781,0),FALSE))","v":""}]
[null,null,null,null,null,null,{"$f":"IF(F67=\"\",\"\",VLOOKUP(F67,Data!I:J,2,FALSE))","v":""},{"$f":"IF(F67=\"\",\"\",HLOOKUP($M67,Data!$I$2:$Q$781,MATCH($F67,Data!$I$2:$I$781,0),FALSE))","v":""}]
[null,null,null,null,null,null,{"$f":"IF(F68=\"\",\"\",VLOOKUP(F68,Data!I:J,2,FALSE))","v":""},{"$f":"IF(F68=\"\",\"\",HLOOKUP($M68,Data!$I$2:$Q$781,MATCH($F68,Data!$I$2:$I$781,0),FALSE))","v":""}]
[null,null,null,null,null,null,{"$f":"IF(F69=\"\",\"\",VLOOKUP(F69,Data!I:J,2,FALSE))","v":""},{"$f":"IF(F69=\"\",\"\",HLOOKUP($M69,Data!$I$2:$Q$781,MATCH($F69,Data!$I$2:$I$781,0),FALSE))","v":""}]
[]
[null,null,{"$f":"IF(AND(Data!$D$2<=1,Data!$G$2=1),\"TOTAL\",IF(AND(Data!$D$2<=1,Data!$G$2>1),\"SCHEDULE B TOTAL\",IF(AND(Data!$D$2>1,Data!$G$2=1),\"TOTALS\",IF(AND(Data!$D$2=2,Data!$G$2>=2),\"SCHEDULE B TOTALS\"))))","v":"TOTAL"},null,null,null,null,null,{"$f":"IF(I$9=\"LPSM\",\"ALL\",SUM(I$41:I$70)+I$40)","v":"ALL"}]
[]
[null,null,null,null,null,null,{"$f":"IF(F73=\"\",\"\",VLOOKUP(F73,Data!I:J,2,FALSE))","v":""},{"$f":"IF(F73=\"\",\"\",HLOOKUP($M73,Data!$I$2:$Q$781,MATCH($F73,Data!$I$2:$I$781,0),FALSE))","v":""}]
[null,null,null,null,null,null,{"$f":"IF(F74=\"\",\"\",VLOOKUP(F74,Data!I:J,2,FALSE))","v":""},{"$f":"IF(F74=\"\",\"\",HLOOKUP($M74,Data!$I$2:$Q$781,MATCH($F74,Data!$I$2:$I$781,0),FALSE))","v":""}]
[null,null,null,null,null,null,{"$f":"IF(F75=\"\",\"\",VLOOKUP(F75,Data!I:J,2,FALSE))","v":""},{"$f":"IF(F75=\"\",\"\",HLOOKUP($M75,Data!$I$2:$Q$781,MATCH($F75,Data!$I$2:$I$781,0),FALSE))","v":""}]
[null,null,null,null,null,null,{"$f":"IF(F76=\"\",\"\",VLOOKUP(F76,Data!I:J,2,FALSE))","v":""},{"$f":"IF(F76=\"\",\"\",HLOOKUP($M76,Data!$I$2:$Q$781,MATCH($F76,Data!$I$2:$I$781,0),FALSE))","v":""}]
[null,null,null,null,null,null,{"$f":"IF(F77=\"\",\"\",VLOOKUP(F77,Data!I:J,2,FALSE))","v":""},{"$f":"IF(F77=\"\",\"\",HLOOKUP($M77,Data!$I$2:$Q$781,MATCH($F77,Data!$I$2:$I$781,0),FALSE))","v":""}]
[null,null,null,null,null,null,{"$f":"IF(F78=\"\",\"\",VLOOKUP(F78,Data!I:J,2,FALSE))","v":""},{"$f":"IF(F78=\"\",\"\",HLOOKUP($M78,Data!$I$2:$Q$781,MATCH($F78,Data!$I$2:$I$781,0),FALSE))","v":""}]
[null,null,null,null,null,null,{"$f":"IF(F79=\"\",\"\",VLOOKUP(F79,Data!I:J,2,FALSE))","v":""},{"$f":"IF(F79=\"\",\"\",HLOOKUP($M79,Data!$I$2:$Q$781,MATCH($F79,Data!$I$2:$I$781,0),FALSE))","v":""}]
[null,null,null,null,null,null,{"$f":"IF(F80=\"\",\"\",VLOOKUP(F80,Data!I:J,2,FALSE))","v":""},{"$f":"IF(F80=\"\",\"\",HLOOKUP($M80,Data!$I$2:$Q$781,MATCH($F80,Data!$I$2:$I$781,0),FALSE))","v":""}]
[null,null,null,null,null,null,{"$f":"IF(F81=\"\",\"\",VLOOKUP(F81,Data!I:J,2,FALSE))","v":""},{"$f":"IF(F81=\"\",\"\",HLOOKUP($M81,Data!$I$2:$Q$781,MATCH($F81,Data!$I$2:$I$781,0),FALSE))","v":""}]
[null,null,null,null,null,null,{"$f":"IF(F82=\"\",\"\",VLOOKUP(F82,Data!I:J,2,FALSE))","v":""},{"$f":"IF(F82=\"\",\"\",HLOOKUP($M82,Data!$I$2:$Q$781,MATCH($F82,Data!$I$2:$I$781,0),FALSE))","v":""}]
[null,null,null,null,null,null,{"$f":"IF(F83=\"\",\"\",VLOOKUP(F83,Data!I:J,2,FALSE))","v":""},{"$f":"IF(F83=\"\",\"\",HLOOKUP($M83,Data!$I$2:$Q$781,MATCH($F83,Data!$I$2:$I$781,0),FALSE))","v":""}]
[null,null,null,null,null,null,{"$f":"IF(F84=\"\",\"\",VLOOKUP(F84,Data!I:J,2,FALSE))","v":""},{"$f":"IF(F84=\"\",\"\",HLOOKUP($M84,Data!$I$2:$Q$781,MATCH($F84,Data!$I$2:$I$781,0),FALSE))","v":""}]
[null,null,null,null,null,null,{"$f":"IF(F85=\"\",\"\",VLOOKUP(F85,Data!I:J,2,FALSE))","v":""},{"$f":"IF(F85=\"\",\"\",HLOOKUP($M85,Data!$I$2:$Q$781,MATCH($F85,Data!$I$2:$I$781,0),FALSE))","v":""}]
[null,null,null,null,null,null,{"$f":"IF(F86=\"\",\"\",VLOOKUP(F86,Data!I:J,2,FALSE))","v":""},{"$f":"IF(F86=\"\",\"\",HLOOKUP($M86,Data!$I$2:$Q$781,MATCH($F86,Data!$I$2:$I$781,0),FALSE))","v":""}]
[null,null,null,null,null,null,{"$f":"IF(F87=\"\",\"\",VLOOKUP(F87,Data!I:J,2,FALSE))","v":""},{"$f":"IF(F87=\"\",\"\",HLOOKUP($M87,Data!$I$2:$Q$781,MATCH($F87,Data!$I$2:$I$781,0),FALSE))","v":""}]
[null,null,null,null,null,null,{"$f":"IF(F88=\"\",\"\",VLOOKUP(F88,Data!I:J,2,FALSE))","v":""},{"$f":"IF(F88=\"\",\"\",HLOOKUP($M88,Data!$I$2:$Q$781,MATCH($F88,Data!$I$2:$I$781,0),FALSE))","v":""}]
[null,null,null,null,null,null,{"$f":"IF(F89=\"\",\"\",VLOOKUP(F89,Data!I:J,2,FALSE))","v":""},{"$f":"IF(F89=\"\",\"\",HLOOKUP($M89,Data!$I$2:$Q$781,MATCH($F89,Data!$I$2:$I$781,0),FALSE))","v":""}]
[null,null,null,null,null,null,{"$f":"IF(F90=\"\",\"\",VLOOKUP(F90,Data!I:J,2,FALSE))","v":""},{"$f":"IF(F90=\"\",\"\",HLOOKUP($M90,Data!$I$2:$Q$781,MATCH($F90,Data!$I$2:$I$781,0),FALSE))","v":""}]
[null,null,null,null,null,null,{"$f":"IF(F91=\"\",\"\",VLOOKUP(F91,Data!I:J,2,FALSE))","v":""},{"$f":"IF(F91=\"\",\"\",HLOOKUP($M91,Data!$I$2:$Q$781,MATCH($F91,Data!$I$2:$I$781,0),FALSE))","v":""}]
[null,null,null,null,null,null,{"$f":"IF(F92=\"\",\"\",VLOOKUP(F92,Data!I:J,2,FALSE))","v":""},{"$f":"IF(F92=\"\",\"\",HLOOKUP($M92,Data!$I$2:$Q$781,MATCH($F92,Data!$I$2:$I$781,0),FALSE))","v":""}]
[null,null,null,null,null,null,{"$f":"IF(F93=\"\",\"\",VLOOKUP(F93,Data!I:J,2,FALSE))","v":""},{"$f":"IF(F93=\"\",\"\",HLOOKUP($M93,Data!$I$2:$Q$781,MATCH($F93,Data!$I$2:$I$781,0),FALSE))","v":""}]
[null,null,null,null,null,null,{"$f":"IF(F94=\"\",\"\",VLOOKUP(F94,Data!I:J,2,FALSE))","v":""},{"$f":"IF(F94=\"\",\"\",HLOOKUP($M94,Data!$I$2:$Q$781,MATCH($F94,Data!$I$2:$I$781,0),FALSE))","v":""}]
[null,null,null,null,null,null,{"$f":"IF(F95=\"\",\"\",VLOOKUP(F95,Data!I:J,2,FALSE))","v":""},{"$f":"IF(F95=\"\",\"\",HLOOKUP($M95,Data!$I$2:$Q$781,MATCH($F95,Data!$I$2:$I$781,0),FALSE))","v":""}]
[null,null,null,null,null,null,{"$f":"IF(F96=\"\",\"\",VLOOKUP(F96,Data!I:J,2,FALSE))","v":""},{"$f":"IF(F96=\"\",\"\",HLOOKUP($M96,Data!$I$2:$Q$781,MATCH($F96,Data!$I$2:$I$781,0),FALSE))","v":""}]
[null,null,null,null,null,null,{"$f":"IF(F97=\"\",\"\",VLOOKUP(F97,Data!I:J,2,FALSE))","v":""},{"$f":"IF(F97=\"\",\"\",HLOOKUP($M97,Data!$I$2:$Q$781,MATCH($F97,Data!$I$2:$I$781,0),FALSE))","v":""}]
[null,null,null,null,null,null,{"$f":"IF(F98=\"\",\"\",VLOOKUP(F98,Data!I:J,2,FALSE))","v":""},{"$f":"IF(F98=\"\",\"\",HLOOKUP($M98,Data!$I$2:$Q$781,MATCH($F98,Data!$I$2:$I$781,0),FALSE))","v":""}]
[null,null,null,null,null,null,{"$f":"IF(F99=\"\",\"\",VLOOKUP(F99,Data!I:J,2,FALSE))","v":""},{"$f":"IF(F99=\"\",\"\",HLOOKUP($M99,Data!$I$2:$Q$781,MATCH($F99,Data!$I$2:$I$781,0),FALSE))","v":""}]
[null,null,null,null,null,null,{"$f":"IF(F100=\"\",\"\",VLOOKUP(F100,Data!I:J,2,FALSE))","v":""},{"$f":"IF(F100=\"\",\"\",HLOOKUP($M100,Data!$I$2:$Q$781,MATCH($F100,Data!$I$2:$I$781,0),FALSE))","v":""}]
[]
[null,null,{"$f":"IF(AND(Data!$D$2<=1,Data!$G$2=1),\"TOTAL\",IF(AND(Data!$D$2<=1,Data!$G$2>1),\"SCHEDULE C TOTAL\",IF(AND(Data!$D$2>1,Data!$G$2=1),\"TOTALS\",IF(AND(Data!$D$2=2,Data!$G$2>=2),\"SCHEDULE C TOTALS\"))))","v":"TOTAL"},null,null,null,null,null,{"$f":"IF(I$9=\"LPSM\",\"ALL\",SUM(I$72:I$101)+I$71)","v":"ALL"}]
[]
[{"$f":"IF(Data!$G$2=1,\" \",IF(Data!$G$2=2,\"Schedule A\",IF(Data!$G$2=3,\"Schedule A\")))","v":" "},null,null,"Rounding %"]
[null,null,null,"Round up"]
[null,null,null,"Bid Schedule",null,null,null,null,{"$f":"IF(I$9=\"each\",I$40,IF(I$9=\"LPSM\",\"LPSM\",IF(I$105=0,ROUND((I$40*(1+I$104)),0),CEILING(I$40*(1+I$104),I$105))))","v":"LPSM"}]
[null,null,null,"Allowance",null,null,null,null,{"$f":"IF(I$9=\"LPSM\",\"--\",I$106-I$40)","v":"--"}]
[]
[{"$f":"IF(Data!$G$2=1,\" \",IF(Data!$G$2=2,\"Schedule B\",IF(Data!$G$2=3,\"Schedule B\")))","v":" "},null,null,{"$f":"IF(Data!$G$2=1, \"\", \"Rounding %\")","v":""}]
[null,null,null,{"$f":"IF(Data!$G$2=1, \" \", \"Round up\")","v":" "}]
[null,null,null,{"$f":"IF(Data!$G$2=1, \" \", \"Bid Schedule\")","v":" "},null,null,null,null,{"$f":"IF(Data!$G$2=1,\"\",IF(I$9=\"each\",I$71,IF(I$9=\"LPSM\",\"LPSM\",IF(I$110=0,ROUND((I$71*(1+I$109)),0),CEILING(I$71*(1+I$109),I$110)))))","v":""}]
[null,null,null,{"$f":"IF(Data!$G$2=1, \" \", \"Allowance\")","v":" "},null,null,null,null,{"$f":"IF(Data!$G$2=1,\"\",IF(I$9=\"LPSM\",\"--\",I$111-I$71))","v":""}]
[]
[{"$f":"IF(Data!$G$2=1,\" \",IF(Data!$G$2=2,\" \",IF(Data!$G$2=3,\"Schedule C\")))","v":" "},null,null,{"$f":"IF(Data!$G$2=1, \"\", IF(Data!$G$2=2, \"\", \"Rounding %\"))","v":""}]
[null,null,null,{"$f":"IF(Data!$G$2=1, \" \", IF(Data!$G$2=2, \"\", \"Round up\"))","v":" "}]
[null,null,null,{"$f":"IF(Data!$G$2=1, \" \", IF(Data!$G$2=2, \"\", \"Bid Schedule\"))","v":" "},null,null,null,null,{"$f":"IF(Data!$G$2<3,\"\",IF(I$9=\"each\",I$102,IF(I$9=\"LPSM\",\"LPSM\",IF(I$115=0,ROUND((I$102*(1+I$114)),0),CEILING(I$102*(1+I$114),I$115)))))","v":""}]
[null,null,null,{"$f":"IF(Data!$G$2=1, \" \", IF(Data!$G$2=2, \"\", \"Allowance\"))","v":" "},null,null,null,null,{"$f":"IF(Data!$G$2<3,\"\",IF(I$9=\"LPSM\",\"--\",I$116-I$102))","v":""}]

{"sheet":"Data","index":2,"n_rows":810,"n_cols":17,"rows_kept":810,"cut":false,"hidden":false,"merged":[[0,10,0,15]]}
["Pay Item Number","Description","Unit","Num Items",null,"Sides","Schedules",null,null,null,"Sign Sizes"]
[null,null,null,{"$f":"COUNTA(A:A)-1","v":0},null,"RT",1,null,"Sign","Description","Single Lane","Multi-lane","Expressway","Freeway","Mininum","Oversized","Shared Use Path"]
[null,null,null,null,null,"LT",null,null,"D10-1","Reference Location (1 digit)","10 x 18","10 x 18","12 x 24","12 x 24","—","—","6 x 9"]
[null,null,null,null,null,"LT/RT",null,null,"D10-1a","Intermediate Reference Location (2 digits)","10 x 27","10 x 27","12 x 36","12 x 36","—","—","6 x 15"]
[null,null,null,null,null,null,null,null,"D10-2","Reference Location (2 digits)","10 x 27","10 x 27","12 x 36","12 x 36","—","—","6 x 15"]
[null,null,null,null,null,null,null,null,"D10-2a","Intermediate Reference Location (3 digits)","10 x 36","10 x 36","12 x 48","12 x 48","—","—","6 x 21"]
[null,null,null,null,null,null,null,null,"D10-3","Reference Location (3 digits)","10 x 36","10 x 36","12 x 48","12 x 48","—","—","6 x 21"]
[null,null,null,null,null,null,null,null,"D10-3a","Intermediate Reference Location (4 digits)","10 x 48","10 x 48","12 x 60","12 x 60","—","—","6 x 24"]
[null,null,null,null,null,null,null,null,"D10-4","Enhanced Reference Location","18 x 54","18 x 54","18 x 54","18 x 54","—","—","—"]
[null,null,null,null,null,null,null,null,"D10-5","Intermediate Enhanced Reference Location","18 x 60","18 x 60","18 x 60","18 x 60","—","—","—"]
[null,null,null,null,null,null,null,null,"D1-1","Destination (1 line)","varies x 18","varies x 18","varies x 24","varies x 24","—","—","varies x 6"]
[null,null,null,null,null,null,null,null,"D1-1a","Destination and Distance (1 line)","varies x 18","varies x 18","varies x 24","varies x 24","—","—","varies x 6"]
[null,null,null,null,null,null,null,null,"D1-1b","Bicycle Destination (1 line)","varies x 6","varies x 6","—","—","—","—","varies x 6"]
[null,null,null,null,null,null,null,null,"D1-1c","Bicycle Destination (1 line)","varies x 6","varies x 6","—","—","—","—","varies x 6"]
[null,null,null,null,null,null,null,null,"D1-1d","Circular Intersection Destination (1 line)","varies x 18","varies x 18","varies x 24","varies x 24","—","—"]
[null,null,null,null,null,null,null,null,"D1-1e","Circular Intersection Departure Guide","varies x 42","varies x 42","—","—","—","—"]
[null,null,null,null,null,null,null,null,"D1-2","Destination (2 lines)","varies x 30","varies x 30","varies x 42","varies x 42","—","—","varies x 12"]
[null,null,null,null,null,null,null,null,"D11-1","Bike Route","24 x 18","24 x 18","—","—","—","—","24 x 18"]
[null,null,null,null,null,null,null,null,"D11-1bP","Bike Route (plaque)","18 x 6","18 x 6","—","—","—","—","18 x 6"]
[null,null,null,null,null,null,null,null,"D11-1c","Bike Route with Destination","24 x 18","24 x 18","—","—","—","—","24 x 18"]
[null,null,null,null,null,null,null,null,"D11-10a","Shared-Use Path Destination (1 line)","—","—","—","—","—","—","varies x 6"]
[null,null,null,null,null,null,null,null,"D11-10b","Shared-Use Path Destination (2 lines)","—","—","—","—","—","—","varies x 12"]
[null,null,null,null,null,null,null,null,"D11-10c","Shared-Use Path Destination (3 lines)","—","—","—","—","—","—","varies x 18"]
[null,null,null,null,null,null,null,null,"D11-10d","Shared-Use Path Destination and Distance (1 line)","—","—","—","—","—","—","varies x 6"]
[null,null,null,null,null,null,null,null,"D11-10e","Shared-Use Path Destination and Distance (2 lines)","—","—","—","—","—","—","varies x 12"]
[null,null,null,null,null,null,null,null,"D11-10f","Shared-Use Path Destination and Distance (3 lines)","—","—","—","—","—","—","varies x 18"]
[null,null,null,null,null,null,null,null,"D11-11","Bicycle Directional","—","—","—","—","—","—","18 x 18"]
[null,null,null,null,null,null,null,null,"D11-12","Pedestrians Directional","—","—","—","—","—","—","18 x 18"]
[null,null,null,null,null,null,null,null,"D11-13","Skaters Directional","—","—","—","—","—","—","18 x 18"]
[null,null,null,null,null,null,null,null,"D11-14","Equestrians Directional","—","—","—","—","—","—","18 x 18"]
[null,null,null,null,null,null,null,null,"D11-20","Bicycle Turn Box Guide Signs","—","—","—","—","—","—","12 x 18"]
[null,null,null,null,null,null,null,null,"D11-20a","Bicycle Turn Box Guide Signs","—","—","—","—","—","—","12 x 18"]
[null,null,null,null,null,null,null,null,"D12-1","Weather Information","84 x 48","132 x 84","—","—","—","—","—"]
[null,null,null,null,null,null,null,null,"D12-2","Carpool Information","60 x 42","96 x 66","—","—","—","—","—"]
[null,null,null,null,null,null,null,null,"D12-3","Channel 9 Monitored","84 x 48","132 x 84","—","—","—","—","—"]
[null,null,null,null,null,null,null,null,"D12-4","Emergency Call 911","66 x 30","96 x 48","—","—","—","—","—"]
[null,null,null,null,null,null,null,null,"D12-5","Travel Info Call 511 (pictograph)","42 x 60","66 x 78","—","—","—","—","—"]
[null,null,null,null,null,null,null,null,"D12-5a","Travel Info Call 511","48 x 36","66 x 48","—","—","—","—","—"]
[null,null,null,null,null,null,null,null,"D1-2a","Destination and Distance (2 lines)","varies x 30","varies x 30","varies x 42","varies x 42","—","—","varies x 12"]
[null,null,null,null,null,null,null,null,"D1-2b","Bicycle Destination (2 lines)","varies x 12","varies x 30","—","—","—","—","varies x 12"]
[null,null,null,null,null,null,null,null,"D1-2c","Bicycle Destination (2 lines)","varies x 12","varies x 30","—","—","—","—","varies x 12"]
[null,null,null,null,null,null,null,null,"D1-2d","Circular Intersection Destination (2 lines)","varies x 30","varies x 30","varies x 42","varies x 42","—","—","—"]
[null,null,null,null,null,null,null,null,"D1-3","Destination (3 lines)","varies x 42","varies x 42","varies x 60",null,null,null,"varies x 18"]
[null,null,null,null,null,null,null,null,"D13-1","Crossover","60 x 30","60 x 30","78 x 42","78 x 42","—","78 x 42","—"]
[null,null,null,null,null,null,null,null,"D13-2","Freeway Entrance","60 x 30","60 x 30","78 x 42","78 x 42","—","—","—"]
[null,null,null,null,null,null,null,null,"D13-3","Freeway Entrance (Directional)","48 x 30","48 x 30","48 x 30","48 x 30","—","—","—"]
[null,null,null,null,null,null,null,null,"D13-3a","Freeway Entrance (Directional)","48 x 42","48 x 42","48 x 42","48 x 42","—","—","—"]
[null,null,null,null,null,null,null,null,"D1-3a","Destination and Distance (3 lines)","varies x 42","varies x 42","varies x 60","—","—","—","varies x 18"]
[null,null,null,null,null,null,null,null,"D1-3b","Bicycle Destination (3 lines)","varies x 18","varies x 18","—","—","—","—","varies x 18"]
[null,null,null,null,null,null,null,null,"D1-3c","Bicycle Destination (3 lines)","varies x 18","varies x 18","—","—","—","—","varies x 18"]
[null,null,null,null,null,null,null,null,"D1-3d","Circular Intersection Destination (3 lines)","varies x 42","varies x 42","—","—","—","—","—"]
[null,null,null,null,null,null,null,null,"D14-1","Acknowledgement","36 x 30","36 x 30","72 x 48","72 x 48","—","—","—"]
[null,null,null,null,null,null,null,null,"D14-2","Acknowledgement","36 x 30","36 x 30","72 x 48","72 x 48","—","—","—"]
[null,null,null,null,null,null,null,null,"D14-3","Acknowledgement","42 x 24","42 x 24","96 x 36","96 x 36","—","—","—"]
[null,null,null,null,null,null,null,null,"D1-5","Circular Intersection Diagram Destination","varies x 72","varies x 72"]
[null,null,null,null,null,null,null,null,"D15-1","Combination Lane Use/Destination","varies x 96","varies x 96","varies x 96","varies x 96","—","—","—"]
[null,null,null,null,null,null,null,null,"D1-5a","Circular Intersection Diagram Destination, Right-Turn Bypass","varies x 78","varies x 78"]
[null,null,null,null,null,null,null,null,"D17-1","Next Truck Lane","42 x 48","42 x 48","60 x 66","60 x 66","—","60 x 66","—"]
[null,null,null,null,null,null,null,null,"D17-2","Advance Truck Lane","42 x 42","42 x 42","60 x 54","60 x 54","—","60 x 54","—"]
[null,null,null,null,null,null,null,null,"D17-3","Next Passing Lane","42 x 48","42 x 48","60 x 66","60 x 66","—","60 x 66","—"]
[null,null,null,null,null,null,null,null,"D17-4","Advance Passing Lane","42 x 42","42 x 42","60 x 54","60 x 54","—","60 x 54","—"]
[null,null,null,null,null,null,null,null,"D17-5","Advance Emergency Turn-Out","60 x 36","60 x 36","78 x 54","78 x 54","—","78 x 54","—"]
[null,null,null,null,null,null,null,null,"D17-6","Emergency Turn-Out (Directional)","60 x 36","60 x 36","78 x 60","78 x 60","—","78 x 60","—"]
[null,null,null,null,null,null,null,null,"D17-7","Advance Slow Vehicle Turn-Out","72 x 36","72 x 36","96 x 54","96 x 54","—","96 x 54","—"]
[null,null,null,null,null,null,null,null,"D2-1","Distance (1 line)","varies x 18","varies x 18","varies x 24","—","—","—","varies x 6"]
[null,null,null,null,null,null,null,null,"D2-1a","Bike Route Destination and Distance (1 line)","varies x 12","varies x 12","—","—","—","—","varies x 12"]
[null,null,null,null,null,null,null,null,"D2-2","Distance (2 lines)","varies x 30","varies x 30","varies x 36",null,null,null,"varies x 9"]
[null,null,null,null,null,null,null,null,"D2-2a","Bike Route Destination and Distance (2 lines)","varies x 15","varies x 15","—","—","—","—","varies x 15"]
[null,null,null,null,null,null,null,null,"D2-3","Distance (3 lines)","varies x 42","varies x 42","varies x 48","—","—","—","varies x 12"]
[null,null,null,null,null,null,null,null,"D2-3a","Bike Route Destination and Distance (3 lines)","varies x 18","varies x 18","—","—","—","—","varies x 18"]
[null,null,null,null,null,null,null,null,"D3-1","Street Name (1 line)","varies x 12","varies x 12","varies x 18","—","varies x 8","varies x 18","varies x 6"]
[null,null,null,null,null,null,null,null,"D3-1","Street Name (2 lines)","varies x 24","varies x 24","varies x 33","—","varies x 15","varies x 33","varies x 12"]
[null,null,null,null,null,null,null,null,"D3-1a","Overhead Street Name (1 line)","varies x 48","varies x 48","varies x 24","—","—","—","—"]
[null,null,null,null,null,null,null,null,"D3-1a","Overhead Street Name (2 lines)","varies x 24","varies x 24","varies x 48","—","—","—","—"]
[null,null,null,null,null,null,null,null,"D3-2","Advance Street Name (2 lines)","varies x 30","varies x 30","varies x 36","—","—","—","—"]
[null,null,null,null,null,null,null,null,"D3-2","Advance Street Name (3 lines)","varies x 42","varies x 42","varies x 48","—","—","—","—"]
[null,null,null,null,null,null,null,null,"D3-2","Advance Street Name (4 lines)","varies x 54","varies x 54","varies x 66","—","—","—","—"]
[null,null,null,null,null,null,null,null,"D4-1","Parking Area Directional","30 x 24","30 x 24","—","—","18 x 15","—","—"]
[null,null,null,null,null,null,null,null,"D4-2","Park - Ride","30 x 36","30 x 36","36 x 48","—","24 x 30","36 x 48","—"]
[null,null,null,null,null,null,null,null,"D4-3","Bicycle Parking Area Directional","18 x 12","18 x 12","—","—","—","—","18 x 12"]
[null,null,null,null,null,null,null,null,"D4-4","Bicycle-Sharing Station Directional","12 x 18","12 x 18","—","—","—","—","12 x 18"]
[null,null,null,null,null,null,null,null,"D4-4a","Bicycle Lockers Directional","12 x 18","12 x 18","—","—","—","—","12 x 18"]
[null,null,null,null,null,null,null,null,"D5-12","Interstate Oasis","—","—","156 x 78","156 x 78","—","—","—"]
[null,null,null,null,null,null,null,null,"D5-12P","Interstate Oasis (plaque)","—","—","114 x 48","114 x 48","—","—","—"]
[null,null,null,null,null,null,null,null,"D5-13","Brake Check Area XX Miles","84 x 48","126 x 72","—","—","—","—","—"]
[null,null,null,null,null,null,null,null,"D5-14","Brake Check Area (with arrow)","78 x 60","96 x 72","—","—","—","—","—"]
[null,null,null,null,null,null,null,null,"D5-15","Chain-Up Area XX Miles","66 x 48","96 x 72","—","—","—","—","—"]
[null,null,null,null,null,null,null,null,"D5-16","Chain-Up Area (with arrow)","72 x 54","96 x 66","—","—","—","—","—"]
[null,null,null,null,null,null,null,null,"D8-1","Advance Weigh Station Distance","78 x 60","78 x 60","78 x 60","96 x 72","60 x 48","96 x 72","—"]
[null,null,null,null,null,null,null,null,"D8-1a","Weigh Station Ahead","66 x 48","66 x 48",null,null,"48 x 36",null,"—"]
[null,null,null,null,null,null,null,null,"D8-2","Weigh Station Advance Direction","84 x 72","84 x 72","84 x 72","108 x 90","66 x 54","108 x 90","—"]
[null,null,null,null,null,null,null,null,"D8-3","Weigh Station Entrance Direction","66 x 60","66 x 60","66 x 60","84 x 78","48 x 42","84 x 78","—"]
[null,null,null,null,null,null,null,null,"D9-1","Telephone","24 x 24","30 x 30","—","—","—","—","—"]
[null,null,null,null,null,null,null,null,"D9-10","Tourist Information","24 x 24","30 x 30","—","—","—","—","—"]
[null,null,null,null,null,null,null,null,"D9-11","Diesel Fuel","24 x 24","30 x 30","—","—","—","—","—"]
[null,null,null,null,null,null,null,null,"D9-11a","Alternative Fuel - Compressed Natural Gas","24 x 24","30 x 30","—","—","—","—","—"]
[null,null,null,null,null,null,null,null,"D9-11b","Electric Vehicle Charging","24 x 24","30 x 30","—","—","—","—","—"]
[null,null,null,null,null,null,null,null,"D9-11bP","Electric Vehicle Charging (plaque)","24 x 18","30 x 24","—","—","—","—","—"]
[null,null,null,null,null,null,null,null,"D9-11c","Alternative Fuel - Ethanol","24 x 24","30 x 30","—","—","—","—","—"]
[null,null,null,null,null,null,null,null,"D9-12","RV Sanitatary Station","24 x 24","30 x 30","—","—","—","—","—"]
[null,null,null,null,null,null,null,null,"D9-13","Emergency Medical Services","24 x 24","30 x 30","—","—","—","—","—"]
[null,null,null,null,null,null,null,null,"D9-13aP","Hospital (plaque)","24 x 12","30 x 12","—","—","—","—","—"]
[null,null,null,null,null,null,null,null,"D9-13bP","Ambulance Station (plaque)","24 x 12","30 x 15","—","—","—","—","—"]
[null,null,null,null,null,null,null,null,"D9-13cP","Emergency Medical Care (plaque)","24 x 18","30 x 24","—","—","—","—","—"]
[null,null,null,null,null,null,null,null,"D9-13dP","Trauma Center (plaque)","24 x 12","30 x 15","—","—","—","—","—"]
[null,null,null,null,null,null,null,null,"D9-14","Police","24 x 24","30 x 30","—","—","—","—","—"]
[null,null,null,null,null,null,null,null,"D9-15","Propane Gas","24 x 24","30 x 30","—","—","—","—","—"]
[null,null,null,null,null,null,null,null,"D9-16","Truck Parking","24 x 24","30 x 30","—","—","—","—","—"]
[null,null,null,null,null,null,null,null,"D9-17P","Next Services XX Miles (plaque)","102 x 24","156 x 30","—","—","—","—","—"]
[null,null,null,null,null,null,null,null,"D9-18","General Services (up to 6 symbols)","—","96 x 60","—","—","—","—","—"]
[null,null,null,null,null,null,null,null,"D9-18a","General Services","—","96 x 60","—","—","—","—","—"]
[null,null,null,null,null,null,null,null,"D9-18b","General Services (up to 6 symbols) with Action or Exit Information","108 x 84","—","132 x 108","132 x 114","—","—","—"]
[null,null,null,null,null,null,null,null,"D9-18c","General Services with Action or Exit Information","72 x 60","—","108 x 84","132 x 108","—","—","—"]
[null,null,null,null,null,null,null,null,"D9-2","Hospital","24 x 24","30 x 30","—","—","—","—","—"]
[null,null,null,null,null,null,null,null,"D9-20","Pharmacy","24 x 24","30 x 30","—","—","—","—","—"]
[null,null,null,null,null,null,null,null,"D9-20aP","24-Hour (plaque)","24 x 12","30 x 12","—","—","—","—","—"]
[null,null,null,null,null,null,null,null,"D9-21","Telecommunication Device for the Deaf","24 x 24","30 x 30","—","—","—","—","—"]
[null,null,null,null,null,null,null,null,"D9-22","Wireless Internet","24 x 24","30 x 30","—","—","—","—","—"]
[null,null,null,null,null,null,null,null,"D9-3","Camping","24 x 24","30 x 30","—","—","—","—","—"]
[null,null,null,null,null,null,null,null,"D9-3a","Trailer Camping","24 x 24","30 x 30","—","—","—","—","—"]
[null,null,null,null,null,null,null,null,"D9-4","Litter Container","24 x 30","36 x 48","—","—","—","—","—"]
[null,null,null,null,null,null,null,null,"D9-6","Handicapped","24 x 24","30 x 30","—","—","—","—","—"]
[null,null,null,null,null,null,null,null,"D9-6P","Van Accessible (plaque)","18 x 9","—","—","—","—","—","—"]
[null,null,null,null,null,null,null,null,"D9-7","Gas","24 x 24","30 x 30","—","—","—","—","—"]
[null,null,null,null,null,null,null,null,"D9-8","Food","24 x 24","30 x 30","—","—","—","—","—"]
[null,null,null,null,null,null,null,null,"D9-9","Lodging","24 x 24","30 x 30","—","—","—","—","—"]
[null,null,null,null,null,null,null,null,"I1-1","Signals Set for XX MPH","24 x 36","24 x 36","—","—","—","—","—"]
[null,null,null,null,null,null,null,null,"I-11","Recycling Collection Center","30 x 48","30 x 48","—","—","—","—","—"]
[null,null,null,null,null,null,null,null,"I-12","Light Rail Transit Station","24 x 24","24 x 24","—","—","—","—","—"]
[null,null,null,null,null,null,null,null,"I-2","Jurisdictional Boundary","Varies x 18","Varies x 18","Varies x 36","Varies x 36","—","—","—"]
[null,null,null,null,null,null,null,null,"I-3","Geographical Features","Varies x 18","Varies x 18","Varies x 36","Varies x 36","—","—","—"]
[null,null,null,null,null,null,null,null,"I-5","Airport","24 x 24","24 x 24","30 x 30","30 x 30","—","—","—"]
[null,null,null,null,null,null,null,null,"I-6","Bus Station","24 x 24","24 x 24","30 x 30","30 x 30","—","—","—"]
[null,null,null,null,null,null,null,null,"I-7","Train Station","24 x 24","24 x 24","30 x 30","30 x 30","—","—","—"]
[null,null,null,null,null,null,null,null,"I-8","Library","24 x 24","24 x 24","30 x 30","30 x 30","—","—","—"]
[null,null,null,null,null,null,null,null,"I-9","Vehicle Ferry Terminal","24 x 24","24 x 24","30 x 30","30 x 30","—","—","—"]
[null,null,null,null,null,null,null,null,"M10-1","National Scenic Byway","24 x 24","24 x 24","24 x 24","24 x 24"]
[null,null,null,null,null,null,null,null,"M10-1aP","National Scenic Byway (plaque)","24 x 12","24 x 12","24 x 12","24 x 12"]
[null,null,null,null,null,null,null,null,"M10-2","Byway Identification","24 x 24","24 x 24"]
[null,null,null,null,null,null,null,null,"M10-2aP","Byway Identification (plaque)","24 x 12","24 x 12"]
[null,null,null,null,null,null,null,null,"M10-3","State Scenic Byway System","24 x 24","24 x 24"]
[null,null,null,null,null,null,null,null,"M10-3a","State Scenic Byway System","24 x 24","24 x 24"]
[null,null,null,null,null,null,null,null,"M10-3bP","Scenic Byway (plaque)","24 x 12","24 x 12"]
[null,null,null,null,null,null,null,null,"M1-1","Interstate Route (1 or 2 digits)","24 x 24","24 x 34","36 x 36","36 x 36",null,"36 x 36"]
[null,null,null,null,null,null,null,null,"M1-1","Interstate Route (3 digits)","30 x 24","30 x 24","45 x 36","45 x 36",null,"45 x 36"]
[null,null,null,null,null,null,null,null,"M11-1","National Historic Trail - Identification","24 x 24","24 x 24"]
[null,null,null,null,null,null,null,null,"M11-1aP","Historic Route (plaque)","24 x 12","24 x 12"]
[null,null,null,null,null,null,null,null,"M11-1bP","Crossing (plaque)","24 x 12","24 x 12"]
[null,null,null,null,null,null,null,null,"M11-1cP","Auto Tour Route (plaque)","24 x 12","24 x 12"]
[null,null,null,null,null,null,null,null,"M11-1dP","Next XX Miles (plaque)","24 x 12","24 x 12"]
[null,null,null,null,null,null,null,null,"M1-1a","Interstate Route (1 or 2 digits)","24 x 24","24 x 34","36 x 36","36 x 36",null,"36 x 36"]
[null,null,null,null,null,null,null,null,"M1-1a","Interstate Route (3 digits)","30 x 24","30 x 24","45 x 36","45 x 36",null,"45 x 36"]
[null,null,null,null,null,null,null,null,"M1-2","Off-Interstate Route (1 or 2 digits)","24 x 24","24 x 34","36 x 36","36 x 36",null,"36 x 36"]
[null,null,null,null,null,null,null,null,"M1-2","Off-Interstate Route (3 digits)","30 x 24","30 x 24","45 x 36","45 x 36",null,"45 x 36"]
[null,null,null,null,null,null,null,null,"M1-3","Off-Interstate Route (1 or 2 digits)","24 x 24","24 x 34","36 x 36","36 x 36",null,"36 x 36"]
[null,null,null,null,null,null,null,null,"M1-3","Off-Interstate Route (3 digits)","30 x 24","30 x 24","45 x 36","45 x 36",null,"45 x 36"]
[null,null,null,null,null,null,null,null,"M1-4","US Route (1 or 2 digits)","24 x 24","24 x 34","36 x 36","36 x 36",null,"36 x 36"]
[null,null,null,null,null,null,null,null,"M1-4","US Route (3 digits)","30 x 24","30 x 24","45 x 36","45 x 36",null,"45 x 36"]
[null,null,null,null,null,null,null,null,"M1-5","State Route (1 or 2 digits)","24 x 24","24 x 34","36 x 36","36 x 36",null,"36 x 36"]
[null,null,null,null,null,null,null,null,"M1-5","State Route (3 digits)","30 x 24","30 x 24","45 x 36","45 x 36",null,"45 x 36"]
[null,null,null,null,null,null,null,null,"M1-6","County Route","24 x 24","24 x 24","36 x 36","36 x 36",null,"36 x 36"]
[null,null,null,null,null,null,null,null,"M1-7","Forest Route","24 x 24","24 x 24","36 x 36","36 x 36","18 x 18","36 x 36"]
[null,null,null,null,null,null,null,null,"M1-8","State or Local Bicycle Route","18 x 24","18 x 24","—","—","—","—","12 x 18"]
[null,null,null,null,null,null,null,null,"M1-8a","State or Local Bicycle Route","18 x 24","18 x 24","—","—","—","—","12 x 18"]
[null,null,null,null,null,null,null,null,"M1-8b","Non-Numbered Bicycle Route","18 x 18","18 x 18","—","—","—","—","12 x 12"]
[null,null,null,null,null,null,null,null,"M1-8c","Non-Numbered Bicycle Route","18 x 18","18 x 18","—","—","—","—","12 x 12"]
[null,null,null,null,null,null,null,null,"M1-9","U.S. Bicycle Route","12 x 18","12 x 18","—","—","—","—","12 x 18"]
[null,null,null,null,null,null,null,null,"M2-1P","Junction (plaque)","21 x 15","21 x 15","30 x 21","30 x 21",null,"30 x 21","12 x 6"]
[null,null,null,null,null,null,null,null,"M2-2","Combination Junction (2 route signs)","60 x 48","60 x 48","60 x 48","60 x 48"]
[null,null,null,null,null,null,null,null,"M3-1P","North (plaque)","24 x 12","24 x 12","36 x 18","36 x 18",null,"36 x 18","12 x 6"]
[null,null,null,null,null,null,null,null,"M3-2P","East (plaque)","24 x 12","24 x 12","36 x 18","36 x 18",null,"36 x 18","12 x 6"]
[null,null,null,null,null,null,null,null,"M3-3P","South (plaque)","24 x 12","24 x 12","36 x 18","36 x 18",null,"36 x 18","12 x 6"]
[null,null,null,null,null,null,null,null,"M3-4P","West (plaque)","24 x 12","24 x 12","36 x 18","36 x 18",null,"36 x 18","12 x 6"]
[null,null,null,null,null,null,null,null,"M4-11","Emergency Route","30 x 30","30 x 30"]
[null,null,null,null,null,null,null,null,"M4-11a","Emergency Route","30 x 30","30 x 30"]
[null,null,null,null,null,null,null,null,"M4-11bP","Emergency Route to (plaque)","30 x 18","30 x 18"]
[null,null,null,null,null,null,null,null,"M4-11cP","Emergency Route to (plaque)","30 x 18","30 x 18"]
[null,null,null,null,null,null,null,null,"M4-12","End Emergency Route","24 x 18","24 x 18"]
[null,null,null,null,null,null,null,null,"M4-14P","Begin (plaque)","24 x 12","24 x 12","36 x 18","36 x 18",null,"36 x 18","12 x 6"]
[null,null,null,null,null,null,null,null,"M4-1aP","Alt (plaque)","24 x 12","24 x 12","36 x 18","36 x 18",null,"36 x 18","12 x 6"]
[null,null,null,null,null,null,null,null,"M4-1P","Alternate (plaque)","24 x 12","24 x 12","36 x 18","36 x 18",null,"36 x 18","12 x 6"]
[null,null,null,null,null,null,null,null,"M4-2P","By-Pass (plaque)","24 x 12","24 x 12","36 x 18","36 x 18",null,"36 x 18","12 x 6"]
[null,null,null,null,null,null,null,null,"M4-3P","Business (plaque)","24 x 12","24 x 12","36 x 18","36 x 18",null,"36 x 18","12 x 6"]
[null,null,null,null,null,null,null,null,"M4-4P","Truck (plaque)","24 x 12","24 x 12","36 x 18","36 x 18",null,"36 x 18","12 x 6"]
[null,null,null,null,null,null,null,null,"M4-5P","To (plaque)","24 x 12","24 x 12","36 x 18","36 x 18",null,"36 x 18","12 x 6"]
[null,null,null,null,null,null,null,null,"M4-6P","End (plaque)","24 x 12","24 x 12","36 x 18","36 x 18",null,"36 x 18","12 x 6"]
[null,null,null,null,null,null,null,null,"M4-7aP","Temp (plaque)","24 x 12","24 x 12","36 x 18","36 x 18",null,"36 x 18","12 x 6"]
[null,null,null,null,null,null,null,null,"M4-7P","Temporary (plaque)","24 x 12","24 x 12","36 x 18","36 x 18",null,"36 x 18","12 x 6"]
[null,null,null,null,null,null,null,null,"M4-8P","Bicycle Route Auxiliary Signs (plaque)","12 x 6","12 x 6","—","—","—","—","12 x 6"]
[null,null,null,null,null,null,null,null,"M5-1P","Advance Turn Arrow","21 x 15","21 x 15","30 x 21","30 x 21","—","30 x 21","12 x 6"]
[null,null,null,null,null,null,null,null,"M5-2P","Advance Turn Arrow","21 x 15","21 x 15","30 x 21","30 x 21","—","30 x 21","12 x 6"]
[null,null,null,null,null,null,null,null,"M5-3P","Advance Turn Arrow","21 x 15","21 x 15","30 x 21","30 x 21","—","30 x 21","—"]
[null,null,null,null,null,null,null,null,"M5-4P","Left Lane (plaque)","24 x 18","24 x 18","36 x 24","36 x 24","—","36 x 24","—"]
[null,null,null,null,null,null,null,null,"M5-5P","Center Lane (plaque)","24 x 18","24 x 18","36 x 24","36 x 24","—","36 x 24","—"]
[null,null,null,null,null,null,null,null,"M5-6P","Right Lane (plaque)","24 x 18","24 x 18","36 x 24","36 x 24","—","36 x 24","—"]
[null,null,null,null,null,null,null,null,"M6-1PL","Left Arrow (plaque)","21 x 15","21 x 15","30 x 21","30 x 21","—","30 x 21","12 x 9"]
[null,null,null,null,null,null,null,null,"M6-1PR","Right Arrow (plaque)","21 x 15","21 x 15","30 x 21","30 x 21","—","30 x 21","12 x 9"]
[null,null,null,null,null,null,null,null,"M6-2aPL","Left Diagonal Downward Arrow (plaque)","21 x 15","21 x 15","30 x 21","30 x 21","—","30 x 21","—"]
[null,null,null,null,null,null,null,null,"M6-2aPR","Right Diagonal Downward Arrow (plaque)","21 x 15","21 x 15","30 x 21","30 x 21","—","30 x 21","—"]
[null,null,null,null,null,null,null,null,"M6-2PL","Left Diagonal Upward Arrow (plaque)","21 x 15","21 x 15","30 x 21","30 x 21","—","30 x 21","12 x 9"]
[null,null,null,null,null,null,null,null,"M6-2PR","Right Diagonal Upward Arrow (plaque)","21 x 15","21 x 15","30 x 21","30 x 21","—","30 x 21","12 x 9"]
[null,null,null,null,null,null,null,null,"M6-3P","Up Arrow (plaque)","21 x 15","21 x 15","30 x 21","30 x 21","—","30 x 21","12 x 9"]
[null,null,null,null,null,null,null,null,"M6-4P","Left - Right Arrow (plaque)","21 x 15","21 x 15","30 x 21","30 x 21","—","30 x 21","12 x 9"]
[null,null,null,null,null,null,null,null,"M6-5P","Diagonal Upward/Downward Arrow (plaque)","21 x 15","21 x 15","30 x 21","30 x 21","—","30 x 21","12 x 9"]
[null,null,null,null,null,null,null,null,"M6-6P","Directional Arrow (plaque)","21 x 15","21 x 15","30 x 21","30 x 21","—","30 x 21","12 x 9"]
[null,null,null,null,null,null,null,null,"M6-7P","Directional Arrow (plaque)","21 x 15","21 x 15","30 x 21","30 x 21","—","30 x 21","12 x 9"]
[null,null,null,null,null,null,null,null,"R10-1","Cross Only On Green Light Only","12 x 18","12 x 18","—","—","—","—","—"]
[null,null,null,null,null,null,null,null,"R10-10a","U Turn Signal","24 x 30","24 x 30","—","—","—","30 x 36","—"]
[null,null,null,null,null,null,null,null,"R10-10L","Left Turn Signal","24 x 30","24 x 30","—","—","—","30 x 36","—"]
[null,null,null,null,null,null,null,null,"R10-10R","Right Turn Signal","24 x 30","24 x 30","—","—","—","30 x 36","—"]
[null,null,null,null,null,null,null,null,"R10-11","No Turn on Red","24 x 30","24 x 30","—","—","—","36 x 48","—"]
[null,null,null,null,null,null,null,null,"R10-11a","No Turn on Red","24 x 30","24 x 30","—","—","—","36 x 48","—"]
[null,null,null,null,null,null,null,null,"R10-11b","No Turn on Red","24 x 24","24 x 24","—","—","—","36 x 36","—"]
[null,null,null,null,null,null,null,null,"R10-11c","No Turn on Red Except From Right Lane","30 x 36","30 x 36","—","—","—","—","—"]
[null,null,null,null,null,null,null,null,"R10-11d","No Turn on Red From This Lane","30 x 42","30 x 42","—","—","—","—","—"]
[null,null,null,null,null,null,null,null,"R10-12","Left Turn Yield on Green","30 x 36","30 x 36","—","—","—","—","—"]
[null,null,null,null,null,null,null,null,"R10-12a","Left Turn Yield on Flashing Yellow Arrow","30 x 36","30 x 36","—","—","—","—","—"]
[null,null,null,null,null,null,null,null,"R10-12b","Left Turn Yield to Bicycle","30 x 36","30 x 36","—","—","—","—","30 x 36"]
[null,null,null,null,null,null,null,null,"R10-13","Emergency Signal","36 x 24","36 x 24","—","—","—","42 x 30","—"]
[null,null,null,null,null,null,null,null,"R10-14","Emergency Signal - Stop on Flashing Red","36 x 42","36 x 42","—","—","—","—","—"]
[null,null,null,null,null,null,null,null,"R10-14a","Emergency Signal - Stop on Flashing Red (overhead)","60 x 24","60 x 24","—","—","—","—","—"]
[null,null,null,null,null,null,null,null,"R10-14b","Stop Here on Flashing Red","24 x 36","24 x 36","—","—","—","—","—"]
[null,null,null,null,null,null,null,null,"R10-15","Turning Vehicles Yield To Pedestrians","30 x 30","30 x 30","—","—","—","—","—"]
[null,null,null,null,null,null,null,null,"R10-15a","Turning Vehicles Stop To Pedestrians","30 x 30","30 x 30","—","—","—","—","—"]
[null,null,null,null,null,null,null,null,"R10-16","U-Turn Yield to Right Turn","30 x 36","30 x 36","—","—","—","—","—"]
[null,null,null,null,null,null,null,null,"R10-17a","Right on Red Arrow After Stop","30 x36","30 x 36","—","—","—","36 x 48","—"]
[null,null,null,null,null,null,null,null,"R10-18","Traffic Laws Photo Enforced","36 x 24","36 x 24","48 x 30","54 x 36","—","54 x 36","—"]
[null,null,null,null,null,null,null,null,"R10-18a","Traffic Signal Photo Enforced","30 x 42","30 x 42","30 x 42","—","—","36 x 54"]
[null,null,null,null,null,null,null,null,"R10-19aP","Photo Enforced (plaque)","24 x 18","24 x 18","36 x 24","48 x 36","—","48 x 36","—"]
[null,null,null,null,null,null,null,null,"R10-19P","Photo Enforced (symbol plaque)","24 x 12","24 x 12","36 x 18","48 x 24","—","48 x 24","—"]
[null,null,null,null,null,null,null,null,"R10-2","Cross Only On Walk Signal","9 x 12","9 x 12","—","—","—","—","—"]
[null,null,null,null,null,null,null,null,"R10-20aP","MON—FRI (and times) (3 lines) (plaque)","24 x 24","24 x 24","—","—","—","—","—"]
[null,null,null,null,null,null,null,null,"R10-20aP","SUNDAY (and times) (2 lines) (plaque)","24 x 18","24 x 18","—","—","—","—","—"]
[null,null,null,null,null,null,null,null,"R10-22","Bicycle Detector","—","—","—","—","—","—","12 x 18"]
[null,null,null,null,null,null,null,null,"R10-23","Crosswalk - Stop on Red","24 x 30","24 x 30","—","—","—","—","—"]
[null,null,null,null,null,null,null,null,"R10-23a","Stop on Red - Yield on Flashing Red After Stop","24 x 30","24 x 30","—","—","—","—","—"]
[null,null,null,null,null,null,null,null,"R10-24","Bike Push Button for Green Light","—","—","—","—","9 x 15","—","9 x 15"]
[null,null,null,null,null,null,null,null,"R10-25","Push Button To Turn On Warning Lights","9 x 12","9 x 12","—","—","—","—","9 x 12"]
[null,null,null,null,null,null,null,null,"R10-26","Bike Push Button for Green Light (arrow)","—","—","—","—","9 x 15","—","9 x 15"]
[null,null,null,null,null,null,null,null,"R10-27","Left Turn Yield on Flashing Red Arrow After Stop","30 x 36","30 x 36","—","—","—","—","—"]
[null,null,null,null,null,null,null,null,"R10-28","XX Vehicles Per Green","24 x 30","24 x 30","—","—","—","—","—"]
[null,null,null,null,null,null,null,null,"R10-29","XX Vehicles Per Green Each Lane","36 x 24","36 x 24","—","—","—","—","—"]
[null,null,null,null,null,null,null,null,"R10-3","Pedestrian Traffic Signal","9 x 12","9 x 12","—","—","—","—","—"]
[null,null,null,null,null,null,null,null,"R10-30","Right Turn on Red Must Yield to U-Turn","30 x 36","30 x 36","—","—","—","—","—"]
[null,null,null,null,null,null,null,null,"R10-31P","At Signal (plaque)","24 x 9","24 x 9","—","—","—","—","—"]
[null,null,null,null,null,null,null,null,"R10-32P","Push Button for 2 Seconds for Extra Crossing Time","9 x 12","9 x 12","—","—","—","—","—"]
[null,null,null,null,null,null,null,null,"R10-3a","Pedestrian Traffic Signal","9 x 15","9 x 15","—","—","—","—","—"]
[null,null,null,null,null,null,null,null,"R10-3b","Pedestrian Traffic Signal","9 x 12","9 x 12","—","—","—","—","—"]
[null,null,null,null,null,null,null,null,"R10-3c","Ride With Traffic (plaque)","9 x 12","9 x 12","—","—","—","—","—"]
[null,null,null,null,null,null,null,null,"R10-3d","Pedestrian Signs and Plaques","9 x 12","9 x 12","—","—","—","—","—"]
[null,null,null,null,null,null,null,null,"R10-3e","Pedestrian Traffic Signal","9 x 15","9 x 15","—","—","—","—","—"]
[null,null,null,null,null,null,null,null,"R10-3f","Pedestrian Traffic Signal","9 x 15","9 x 15","—","—","—","—","—"]
[null,null,null,null,null,null,null,null,"R10-3g","Pedestrian Traffic Signal","9 x 15","9 x 15","—","—","—","—","—"]
[null,null,null,null,null,null,null,null,"R10-3h","Pedestrian Traffic Signal","9 x 15","9 x 15","—","—","—","—","—"]
[null,null,null,null,null,null,null,null,"R10-3i","Pedestrian Traffic Signal","9 x 15","9 x 15","—","—","—","—","—"]
[null,null,null,null,null,null,null,null,"R10-4","Push Button for Green Light","9 x 12","9 x 12","—","—","—","—","9 x 12"]
[null,null,null,null,null,null,null,null,"R10-40","Bicycle Signal","—","—","—","—","—","—","12 x 21"]
[null,null,null,null,null,null,null,null,"R10-40a","Bicycle Signal","—","—","—","—","—","—","12 x 21"]
[null,null,null,null,null,null,null,null,"R10-41","Bicycle Signal","—","—","—","—","—","—","12 x 21"]
[null,null,null,null,null,null,null,null,"R10-41a","Bicycle Signal","—","—","—","—","—","—","12 x 21"]
[null,null,null,null,null,null,null,null,"R10-41b","Bicycle Signal","—","—","—","—","—","—","12 x 21"]
[null,null,null,null,null,null,null,null,"R10-41c","Bicycle Signal","—","—","—","—","—","—","12 x 21"]
[null,null,null,null,null,null,null,null,"R10-4a","Pedestrian Signs","9 x 15","9 x 15","—","—","—","—","—"]
[null,null,null,null,null,null,null,null,"R10-5","Left on Green Arrow Only","30 x 36","30 x 36","30 x 36","—","24 x 30","48 x 60","—"]
[null,null,null,null,null,null,null,null,"R10-6","Stop Here on Red","24 x 36","24 x 36","—","—","—","36 x 48","—"]
[null,null,null,null,null,null,null,null,"R10-6a","Stop Here on Red","24 x 30","24 x 30","—","—","—","36 x 42","—"]
[null,null,null,null,null,null,null,null,"R10-7","Do Not Block Intersection","24 x 30","24 x 30","—","—","—","—","—"]
[null,null,null,null,null,null,null,null,"R10-8","Use Lane with Green Arrow","30 x 36","30 x 36","36 x 42","—","—","60 x 72","—"]
[null,null,null,null,null,null,null,null,"R1-1","Stop","30 x 30","36 x 36","36 x 36","—","30 x 30","48 x 48","18 x 18"]
[null,null,null,null,null,null,null,null,"R1-10P","Except Right Turn (plaque)","24 x 18","24 x 18","—","—","—","—","—"]
[null,null,null,null,null,null,null,null,"R11-1","Keep Off Median","24 x 30","24 x 30","—","—","—","—","—"]
[null,null,null,null,null,null,null,null,"R11-2","Road Closed","48 x 30","48 x 30","—","—","—","—","—"]
[null,null,null,null,null,null,null,null,"R11-2a","Road Closed","48 x 30","48 x 30","—","—","—","—","—"]
[null,null,null,null,null,null,null,null,"R11-2b","Road Closed","48 x 30","48 x 30","—","—","—","—","—"]
[null,null,null,null,null,null,null,null,"R11-2c","Road Closed","48 x 30","48 x 30","—","—","—","—","—"]
[null,null,null,null,null,null,null,null,"R11-3","Road Closed - Local Traffic Only","60 x 30","60 x 30","—","—","—","—","—"]
[null,null,null,null,null,null,null,null,"R11-3a","Road Closed - Local Traffic Only","60 x 30","60 x 30","—","—","—","—","—"]
[null,null,null,null,null,null,null,null,"R11-3b","Road Closed - Local Traffic Only","60 x 30","60 x 30","—","—","—","—","—"]
[null,null,null,null,null,null,null,null,"R11-4","Road Closed to Thru Traffic","60 x 30","60 x 30","—","—","—","—","—"]
[null,null,null,null,null,null,null,null,"R1-2","Yield","36 x 36 x 36","48 x 48 x 48","48 x 48 x 48","60 x 60 x 60","30 x 30 x 30","—","18 x 18 x 18"]
[null,null,null,null,null,null,null,null,"R12-1","Weight Limit","24 x 30","24 x 30","36 x 48","—","—","36 x 48","—"]
[null,null,null,null,null,null,null,null,"R12-2"," Axle Weight Limit","24 x 30","24 x 30","36 x 48","—","—","36 x 48","—"]
[null,null,null,null,null,null,null,null,"R12-4","Weight Limit","36 x 24","36 x 24","—","—","—","—","—"]
[null,null,null,null,null,null,null,null,"R12-5","Weight Limit","24 x 36","24 x 36","36 x 48","48 x 60","—","—","—"]
[null,null,null,null,null,null,null,null,"R12-6","Weight Limit","30 x 42","36 x 48","36 x 48","48 x 60","—","48 x 60"]
[null,null,null,null,null,null,null,null,"R12-7","Emergency Vehicle Weight Limit","30 x 36","30 x 36","48 x 60","48 x 60","—","48 x 60"]
[null,null,null,null,null,null,null,null,"R12-7aP","Emergency Vehicle Weight Limit (plaque)","30 x 30","30 x 30","48 x 48","48 x 48","—","48 x 48"]
[null,null,null,null,null,null,null,null,"R1-2aP","To Oncoming Traffic (plaque)","24 x 18","24 x 18","36 x 30","48 x 36","24 x 18","—","—"]
[null,null,null,null,null,null,null,null,"R1-2bP","To Traffic in Circle (plaque)","24 x 15","24 x15","—","—","24 x 15","36 x 24"]
[null,null,null,null,null,null,null,null,"R1-2cP","To All Lanes (plaque)","24 x 15","24 x15","—","—","24 x 15","36 x 24"]
[null,null,null,null,null,null,null,null,"R13-1","Weigh Station","72 x 54","72 x 54","96 x 72","132 x 90","—","—","—"]
[null,null,null,null,null,null,null,null,"R1-3P","All Way (plaque)","18 x 6","18 x 6","—","—","—","30 x 12","—"]
[null,null,null,null,null,null,null,null,"R14-1","Truck Route","24 x 18","24 x 18","—","—","—","—","—"]
[null,null,null,null,null,null,null,null,"R14-2","Hazardous Material","24 x 24","24 x 24","30 x 30","36 x 36","—","42 x 42","—"]
[null,null,null,null,null,null,null,null,"R14-3","Hazardous Material","24 x 24","24 x 24","30 x 30","36 x 36","—","42 x 42","—"]
[null,null,null,null,null,null,null,null,"R14-4","National Network","30 x 30","30 x 30","36 x 36","36 x 36","—","42 x 42","—"]
[null,null,null,null,null,null,null,null,"R14-5","National Network","30 x 30","30 x 30","36 x 36","36 x 36","—","42 x 42","—"]
[null,null,null,null,null,null,null,null,"R1-5","Yield Here to Pedsestrians","—","36 x 36","—","—","—","36 x 36","—"]
[null,null,null,null,null,null,null,null,"R15-1","Grade Crossing (Crossbuck)","—","—","—","—","48 x 9","—","24 x 4.5"]
[null,null,null,null,null,null,null,null,"R15-2P","Number of Tracks (plaque)","—","—","—","—","27 x 18","—","13.5 x 9"]
[null,null,null,null,null,null,null,null,"R15-8","Look","—","—","—","—","36 x 18","—","18 x 9"]
[null,null,null,null,null,null,null,null,"R1-5b","Stop Here for Pedsestrians","—","36 x 36","—","—","—","36 x 36","—"]
[null,null,null,null,null,null,null,null,"R1-5d","Yield Here to Trail Crossing","—","36 x 42","—","—","—","—","—"]
[null,null,null,null,null,null,null,null,"R1-5e","Stop Here for Trail Crossing","—","36 x 42","—","—","—","—","—"]
[null,null,null,null,null,null,null,null,"R1-6","In-Street Pedestrian Crossing - Yield","12 x 36","12 x 36","—","—","—","—","—"]
[null,null,null,null,null,null,null,null,"R16-10","Begin Daytime Headlight Section","60 x 18","60 x 18","96 x 30","120 x 36","—","96 x 30","—"]
[null,null,null,null,null,null,null,null,"R16-11","End Daytime Headlight Section","60 x 18","60 x 18","96 x 30","120 x 36","—","96 x 30","—"]
[null,null,null,null,null,null,null,null,"R16-15","No Hand-Held Phone Use By Driver","—","—","72 x 48","72 x 48","—","—","—"]
[null,null,null,null,null,null,null,null,"R16-15a","No Hand-Held Phone Use By Driver","30 x 42","30 x 42","—","—","—","—","—"]
[null,null,null,null,null,null,null,null,"R16-3","Move Over or Reduce Speed","—","60 x 48","84 x 60","107 x 72","—","84 x 60","—"]
[null,null,null,null,null,null,null,null,"R16-4","Minor Crashes Move Vehicles from Travel Lanes","—","60 x 42","84 x 54","96 x 60","—","84 x 54","—"]
[null,null,null,null,null,null,null,null,"R16-5","Lights On When Using Wipers","24 x 30","24 x 30","36 x 48","48 x 60","—","36 x 48","—"]
[null,null,null,null,null,null,null,null,"R16-6","Lights On When Using Wipers or Raining","24 x 30","24 x 30","36 x 48","48 x 60","—","36 x 48","—"]
[null,null,null,null,null,null,null,null,"R16-7","Turn On Headlights Next XX Miles","60 x 18","60 x 18","96 x 30","132 x 36","—","96 x 30","—"]
[null,null,null,null,null,null,null,null,"R16-8","Turn On, Check Headlights","42 x 18","42 x 18","60 x 30","78 x 36","—","60 x 30","—"]
[null,null,null,null,null,null,null,null,"R16-9","Check Headlights","42 x 18","42 x 18","60 x 30","78 x 36","—","60 x 30","—"]
[null,null,null,null,null,null,null,null,"R1-6a","In-Street Pedestrian Crossing -Stop","12 x 36","12 x 36","—","—","—","—","—"]
[null,null,null,null,null,null,null,null,"R1-6d","In-Street Trail Crossing - Yield","12 x 36","12 x 36","—","—","—","—","—"]
[null,null,null,null,null,null,null,null,"R1-6e","In-Street Trail Crossing - Stop","12 x 36","12 x 36","—","—","—","—","—"]
[null,null,null,null,null,null,null,null,"R1-9","Overhead Pedestrian Crossing - Yield","90 x 24","90 x 24","—","—","—","—","—"]
[null,null,null,null,null,null,null,null,"R1-9a","Overhead Pedestrian Crossing - Stop","90 x 24","90 x 24","—","—","—","—","—"]
[null,null,null,null,null,null,null,null,"R1-9d","Overhead Trail Crossing","72 x 24","72 x 24","—","—","—","—","—"]
[null,null,null,null,null,null,null,null,"R1-9e","Overhead Trail Crossing","72 x 24","72 x 24","—","—","—","—","—"]
[null,null,null,null,null,null,null,null,"R2-1","Speed Limit","24 x 30","30 x 36","36 x 48","48 x 60","18 x 24","30 x 36","—"]
[null,null,null,null,null,null,null,null,"R2-10","Begin Higher Fines Zone","24 x 30","24 x 30","36 x 48","48 x 60","—","36 x 48","—"]
[null,null,null,null,null,null,null,null,"R2-11","End Higher Fines Zone","24 x 30","24 x 30","36 x 48","48 x 60","—","36 x 48","—"]
[null,null,null,null,null,null,null,null,"R2-13","End Variable Speed Limit","24 x 30","24 x 30","36 x 48","48 x 60","—","37 x 48"]
[null,null,null,null,null,null,null,null,"R2-14","End Truck Speed Limit","24 x 30","24 x 30","36 x 48","48 x 60","—","38 x 48"]
[null,null,null,null,null,null,null,null,"R2-2aP","Bus Speed Limit (plaque)","24 x 24","24 x 24","36 x 36","48 x 48","—","36 x 36","—"]
[null,null,null,null,null,null,null,null,"R2-2bP","Truck - Bus Speed Limit (plaque)","24 x 30","24 x 30","36 x 42","48 x 54","—","36 x 42","—"]
[null,null,null,null,null,null,null,null,"R2-2cP","Vehicles Over X Tons Speed Limit (plaque)","24 x 30","24 x 30","36 x 42","48 x 54","—","36 x 42","—"]
[null,null,null,null,null,null,null,null,"R2-2P","Truck Speed Limit (plaque)","24 x 24","24 x 24","36 x 36","48 x 48","—","36 x 36","—"]
[null,null,null,null,null,null,null,null,"R2-3P","Night Speed Limit (plaque)","24 x 24","24 x 24","36 x 36","48 x 48","—","36 x 36","—"]
[null,null,null,null,null,null,null,null,"R2-4a","Combined Maximum and Minimum Speed Limits","24 x 48","24 x 48","36 x 72","48 x 96","—","36 x 72","—"]
[null,null,null,null,null,null,null,null,"R2-4P","Minimum Speed Limit (plaque)","24 x 24","24 x 24","36 x 36","48 x 48","—","36 x 36","—"]
[null,null,null,null,null,null,null,null,"R2-5aP","Citywide (plaque)","24 x 6","24 x 6","—","—","—","30 x 9","—"]
[null,null,null,null,null,null,null,null,"R2-5bP","Neighborhood (plaque)","24 x 6","24 x 6","—","—","—","30 x 9","—"]
[null,null,null,null,null,null,null,null,"R2-5cP","Residential (plaque)","24 x 6","24 x 6","—","—","—","30 x 9","—"]
[null,null,null,null,null,null,null,null,"R2-5P","Unless Otherwise Posted (plaque)","24 x 18","24 x 18","36 x 24","36 x 24","—","36 x 24","—"]
[null,null,null,null,null,null,null,null,"R2-6aP","Fines Double (plaque)","24 x 18","24 x 18","36 x 24","48 x 36","—","36 x 24","—"]
[null,null,null,null,null,null,null,null,"R2-6bP","$ Fine (plaque)","24 x 18","24 x 18","36 x 24","48 x 36","—","36 x 24","—"]
[null,null,null,null,null,null,null,null,"R2-6P","Fines Higher (plaque)","24 x 18","24 x 18","36 x 24","48 x 36","—","36 x 24","—"]
[null,null,null,null,null,null,null,null,"R3-17","Bike Lane","—","—","—","—","—","—","24 x 18"]
[null,null,null,null,null,null,null,null,"R3-17aP","Ahead (plaque)","—","—","—","—","—","—","24 x 9"]
[null,null,null,null,null,null,null,null,"R3-17bP","Ends (plaque)","—","—","—","—","—","—","24 x 9"]
[null,null,null,null,null,null,null,null,"R3-18","No Left or U Turn","24 x 24","36 x 36","36 x 36","—","—","48 x 48","—"]
[null,null,null,null,null,null,null,null,"R3-19","Lane for Left Turn Only","30 x 24","30 x 24","—","—","—","—","—"]
[null,null,null,null,null,null,null,null,"R3-19a","Lane for U Turn Only","30 x 24","30 x 24","—","—","—","—","—"]
[null,null,null,null,null,null,null,null,"R3-19b","Lane for U and Left Turns Only","30 x 30","30 x 30","—","—","—","—","—"]
[null,null,null,null,null,null,null,null,"R3-1bL","Trucks - No Left Turn","24 x 36","24 x 36","36 x 54","36 x 54","—","—","—"]
[null,null,null,null,null,null,null,null,"R3-1bR","Trucks - No Right Turn","24 x 36","24 x 36","36 x 54","36 x 54","—","—","—"]
[null,null,null,null,null,null,null,null,"R3-1cL","Trucks - Bus No Left Turn","24 x 42","24 x 42","36 x 60","36 x 60","—","—"]
[null,null,null,null,null,null,null,null,"R3-1cR","Trucks - Bus No Right Turn","24 x 42","24 x 42","36 x 60","36 x 60","—","—"]
[null,null,null,null,null,null,null,null,"R3-1dL","Trucks Over 4 Tons - No Left Turn","24 x 48","24 x 48","36 x 66","36 x 66","—","—"]
[null,null,null,null,null,null,null,null,"R3-1dR","Trucks Over 4 Tons - No Right Turn","24 x 48","24 x 48","36 x 66","36 x 66","—","—"]
[null,null,null,null,null,null,null,null,"R3-1eL","No Left Turn Except Busses","24 x 36","24 x 36","36 x 54","36 x 54","—","—"]
[null,null,null,null,null,null,null,null,"R3-1eR","No Right Turn Except Busses","24 x 36","24 x 36","36 x 54","36 x 54","—","—"]
[null,null,null,null,null,null,null,null,"R3-1fL","No Left Turn Except Busses - Taxis","24 x 42","24 x 42","36 x 66","36 x 66","—","—"]
[null,null,null,null,null,null,null,null,"R3-1fR","No Right Turn Except Busses - Taxis","24 x 42","24 x 42","36 x 66","36 x 66","—","—"]
[null,null,null,null,null,null,null,null,"R3-1gL","No Left Turn (Time and Day)","24 x 36","24 x 36","36 x 54","36 x 54","—","—"]
[null,null,null,null,null,null,null,null,"R3-1gR","No Right Turn (Time and Day)","24 x 36","24 x 36","36 x 54","36 x 54","—","—"]
[null,null,null,null,null,null,null,null,"R3-1hL","No Left Turn (Multiple Times and Day)","24 x 42","24 x 42","36 x 66","36 x 66","—","—"]
[null,null,null,null,null,null,null,null,"R3-1hR","No Right Turn (Multiple Times and Day)","24 x 42","24 x 42","36 x 66","36 x 66","—","—"]
[null,null,null,null,null,null,null,null,"R3-1L","No Left Turn","24 x 24","36 x 36","36 x 36","—","—","48 x 48","—"]
[null,null,null,null,null,null,null,null,"R3-1R","No Right Turn","24 x 24","36 x 36","36 x 36","—","—","48 x 48","—"]
[null,null,null,null,null,null,null,null,"R3-2","No Left Turn","24 x 24","36 x 36","36 x 36","—","—","48 x 48","—"]
[null,null,null,null,null,null,null,null,"R3-20L","Begin Left Turn Lane","24 x 36","24 x 36","—","—","—","—","—"]
[null,null,null,null,null,null,null,null,"R3-20R","Begin Right Turn Lane","24 x 36","24 x 36","—","—","—","—","—"]
[null,null,null,null,null,null,null,null,"R3-23","All Turns from Right Lane","60 x 36","60 x 36","—","—","—","—","—"]
[null,null,null,null,null,null,null,null,"R3-23a","U Turn from Right Lane","60 x 36","60 x 36","—","—","—","—","—"]
[null,null,null,null,null,null,null,null,"R3-24","All Turns with arrow","72 x 18","72 x 18","—","—","—","—","—"]
[null,null,null,null,null,null,null,null,"R3-24a","U and Left Turns with arrow","60 x 24","60 x 24","—","—","—","—","—"]
[null,null,null,null,null,null,null,null,"R3-24b","U Turn with arrow","72 x 18","72 x 18","—","—","—","—","—"]
[null,null,null,null,null,null,null,null,"R3-25","All Turns with arrow","72 x 18","72 x 18","—","—","—","—","—"]
[null,null,null,null,null,null,null,null,"R3-25a","U and Left Turns with arrow","60 x 24","60 x 24","—","—","—","—","—"]
[null,null,null,null,null,null,null,null,"R3-25b","U Turn with arrow","72 x 18","72 x 18","—","—","—","—","—"]
[null,null,null,null,null,null,null,null,"R3-26","U and Left Turns with arrow","60 x 24","60 x 24","—","—","—","—","—"]
[null,null,null,null,null,null,null,null,"R3-26a","U Turn with arrow","72 x 18","72 x 18","—","—","—","—","—"]
[null,null,null,null,null,null,null,null,"R3-27","No Straight","24 x 24","36 x 36","36 x 36","—","—","48 x 48","—"]
[null,null,null,null,null,null,null,null,"R3-3","No Turns","24 x 24","36 x 36","36 x 36","—","—","48 x 48","—"]
[null,null,null,null,null,null,null,null,"R3-33aL","Left Lane Must Exit","—","—","42 x 60","42 x 60","—","—","—"]
[null,null,null,null,null,null,null,null,"R3-33aR","Right Lane Must Exit","—","—","42 x 60","42 x 60","—","—","—"]
[null,null,null,null,null,null,null,null,"R3-33L","Left Lane Must Exit","—","—","78 x 36","78 x 36","—","—","—"]
[null,null,null,null,null,null,null,null,"R3-33R","Right Lane Must Exit","—","—","78 x 36","78 x 36","—","—","—"]
[null,null,null,null,null,null,null,null,"R3-4","No U Turn","24 x 24","36 x 36","36 x 36","—","—","48 x 48","—"]
[null,null,null,null,null,null,null,null,"R3-5a","Straight Only","30 x 36","30 x 36","—","—","—","—","—"]
[null,null,null,null,null,null,null,null,"R3-5bP","Left Lane (plaque)","30 x 12","30 x 12","—","—","—","—","—"]
[null,null,null,null,null,null,null,null,"R3-5cP","HOV 2+ (plaque)","24 x 12","24 x 12","—","—","—","—","—"]
[null,null,null,null,null,null,null,null,"R3-5dP","Taxi Lane (plaque)","30 x 12","30 x 12","—","—","—","—","—"]
[null,null,null,null,null,null,null,null,"R3-5fP","Right Lane (plaque)","30 x 12","30 x 12","—","—","—","—","—"]
[null,null,null,null,null,null,null,null,"R3-5gP","Bus Lane (plaque)","30 x 12","30 x 12","—","—","—","—","—"]
[null,null,null,null,null,null,null,null,"R3-5hP","Bike Lane (plaque)","30 x 12","30 x 12","—","—","—","—","30 x 12"]
[null,null,null,null,null,null,null,null,"R3-5L","Left Turn Only","30 x 36","30 x 36","—","—","—","—","—"]
[null,null,null,null,null,null,null,null,"R3-5R","Right Turn Only","30 x 36","30 x 36","—","—","—","—","—"]
[null,null,null,null,null,null,null,null,"R3-6a","Optional Movement U and Left Turn","30 x 36","30 x 36","—","—","—","—","—"]
[null,null,null,null,null,null,null,null,"R3-6L","Optional Movement Lane Control (Thru and Turn)","30 x 36","30 x 36","—","—","—","—","—"]
[null,null,null,null,null,null,null,null,"R3-6R","Optional Movement Lane Control (Thru and Turn)","30 x 36","30 x 36","—","—","—","—","—"]
[null,null,null,null,null,null,null,null,"R3-7aP","Except Buses (plaque)","24 x 12","24 x 12","—","—","—","—","—"]
[null,null,null,null,null,null,null,null,"R3-7bP","Except Bicycles (plaque)","24 x 12","24 x 12","—","—","—","—","24 x 12"]
[null,null,null,null,null,null,null,null,"R3-7L","Left Lane Must Turn Left","30 x 30","36 x 36","—","—","—","—","—"]
[null,null,null,null,null,null,null,null,"R3-7R","Right Lane Must Turn Right","30 x 30","36 x 36","—","—","—","—","—"]
[null,null,null,null,null,null,null,null,"R3-8","Advance Intersection Lane Control","varies x 30","varies x 30","—","—","—","varies x 36","varies x 36"]
[null,null,null,null,null,null,null,null,"R3-8a","Advance Intersection Lane Control","varies x 30","varies x 30","—","—","—","varies x 36","varies x 36"]
[null,null,null,null,null,null,null,null,"R3-8b","Advance Intersection Lane Control","varies x 30","varies x 30","—","—","—","varies x 36","varies x 36"]
[null,null,null,null,null,null,null,null,"R3-8xa","Advance Intersection Lane Control","varies x 30","varies x 30","—","—","—","varies x 36","varies x 36"]
[null,null,null,null,null,null,null,null,"R3-8xb","Advance Intersection Lane Control","varies x 30","varies x 30","—","—","—","varies x 36","varies x 36"]
[null,null,null,null,null,null,null,null,"R3-8xc","Advance Intersection Lane Control","varies x 30","varies x 30","—","—","—","varies x 36","varies x 36"]
[null,null,null,null,null,null,null,null,"R3-9a","Two-Way Left Turn Only (overhead)","30 x 36","30 x 36","—","—","—","—","—"]
[null,null,null,null,null,null,null,null,"R3-9b","Two-Way Left Turn Only (post-mounted)","24 x 36","24 x 36","—","—","—","36 x 48","—"]
[null,null,null,null,null,null,null,null,"R3-9cP","BEGIN (plaque)","24 x 12","24 x 12","—","—","—","36 x 18","—"]
[null,null,null,null,null,null,null,null,"R3-9dP","END (plaque)","24 x 12","24 x 12","—","—","—","36 x 18","—"]
[null,null,null,null,null,null,null,null,"R3-9e","Reversible Lane Control (overhead)","108 x 48","108 x 48","—","—","—","—","—"]
[null,null,null,null,null,null,null,null,"R3-9f","Reversible Lane Control (post-mounted)","30 x 42","36 x 54","—","—","—","—","—"]
[null,null,null,null,null,null,null,null,"R3-9g","Advance Reversible Lane Control ","108 x 36","108 x 36","—","—","—","—","—"]
[null,null,null,null,null,null,null,null,"R3-9h","Advance Reversible Lane Control ","108 x 36","108 x 36","—","—","—","—","—"]
[null,null,null,null,null,null,null,null,"R3-9i","End Reverse Lane","108 x 48","108 x 48","—","—","—","—","—"]
[null,null,null,null,null,null,null,null,"R4-1","Do Not Pass","24 x 30","24 x 30","36 x 48","48 x 60","18 x 24","36 x 48","12 x 18"]
[null,null,null,null,null,null,null,null,"R4-10","Runaway Vehicles Only","48 x 48","48 x 48","—","—","—","—","—"]
[null,null,null,null,null,null,null,null,"R4-11","Bicycles May Use Full Lane","—","—","—","—","30 x 30","—","—"]
[null,null,null,null,null,null,null,null,"R4-12","Slow Vehicles with XX or More Following Vehicles Must Use Turn-Out","42 x 24","42 x 24","—","—","—","—","—"]
[null,null,null,null,null,null,null,null,"R4-13","Slow Vehicles Must Use Turn-Out Ahead","42 x 24","42 x 24","—","—","—","—","—"]
[null,null,null,null,null,null,null,null,"R4-14","Slow Vehicles Must Turn Out","30 x 42","30 x 42","—","—","—","—","—"]
[null,null,null,null,null,null,null,null,"R4-16","Keep Right Except to Pass","24 x 30","24 x 30","36 x 48","48 x 60","18 x 24","36 x 48","12 x 18"]
[null,null,null,null,null,null,null,null,"R4-17","Do Not Drive on Shoulder","24 x 30","24 x 30","36 x 48","48 x 60","18 x 24","36 x 48","—"]
[null,null,null,null,null,null,null,null,"R4-18","Do Not Pass on Shoulder","24 x 30","24 x 30","36 x 48","48 x 60","18 x 24","36 x 48","—"]
[null,null,null,null,null,null,null,null,"R4-19","Bicycle Passing Clearance","—","—","—","—","—","—","30 x 30"]
[null,null,null,null,null,null,null,null,"R4-2","Pass With Care","24 x 30","24 x 30","36 x 48","48 x 60","18 x 24","36 x 48","12 x 18"]
[null,null,null,null,null,null,null,null,"R4-20","All Traffic","24 x 30","24 x 30","36 x 48","48 x 60","18 x 24","36 x 48","—"]
[null,null,null,null,null,null,null,null,"R4-21L","Left Turn Only","24 x 30","24 x 30","—","—","—","—","—"]
[null,null,null,null,null,null,null,null,"R4-21R","Right Turn Only","24 x 30","24 x 30","—","—","—","—","—"]
[null,null,null,null,null,null,null,null,"R4-3","Slower Traffic Keep Right","24 x 30","24 x 30","36 x 48","48 x 60","18 x 24","36 x 48","12 x 18"]
[null,null,null,null,null,null,null,null,"R4-4","Beign Right Turn Lane Yield to Bikes","—","—","—","—","36 x 30","—","36 x 30"]
[null,null,null,null,null,null,null,null,"R4-5","Trucks Use Right Lane","24 x 30","24 x 30","36 x 48","48 x 60","—","36 x 48","—"]
[null,null,null,null,null,null,null,null,"R4-7","Keep Right","24 x 30","24 x 30","36 x 48","48 x 60","18 x 24","36 x 48","12 x 18"]
[null,null,null,null,null,null,null,null,"R4-7a","Keep Right","24 x 30","24 x 30","36 x 48","48 x 60","18 x 24","36 x 48","—"]
[null,null,null,null,null,null,null,null,"R4-7b","Keep Right","24 x 30","24 x 30","36 x 48","48 x 60","18 x 24","36 x 48","—"]
[null,null,null,null,null,null,null,null,"R4-7c","Narrow Keep Right","18 x 30","18 x 30","—","—","—","—","—"]
[null,null,null,null,null,null,null,null,"R4-8","Keep Left","24 x 30","24 x 30","36 x 48","48 x 60","18 x 24","36 x 48","—"]
[null,null,null,null,null,null,null,null,"R4-8a","Keep Left","24 x 30","24 x 30","36 x 48","48 x 60","18 x 24","36 x 48","—"]
[null,null,null,null,null,null,null,null,"R4-8b","Keep Left","24 x 30","24 x 30","36 x 48","48 x 60","18 x 24","36 x 48","—"]
[null,null,null,null,null,null,null,null,"R4-8c","Narrow Keep Left","18 x 30","18 x 30","—","—","—","—","—"]
[null,null,null,null,null,null,null,null,"R4-9","Stay in Lane","24 x 30","24 x 30","36 x 48","48 x 60","18 x 24","36 x 48","—"]
[null,null,null,null,null,null,null,null,"R5-1","Do Not Enter","30 x 30","36 x 36","36 x 36","48 x 48","—","36 x 36","—"]
[null,null,null,null,null,null,null,null,"R5-10"]
[null,null,null,null,null,null,null,null,"R5-10a","No Pedestrians, Bicycles, Motor-Driven Cycles","30 x 36","30 x 36","—","—","—","—","—"]
[null,null,null,null,null,null,null,null,"R5-10b","No Pedestrians or Bicycles","30 x 18","30 x 18","—","—","—","—","—"]
[null,null,null,null,null,null,null,null,"R5-10c","No Pedestrians","24 x 12","24 x 12","—","—","—","—","—"]
[null,null,null,null,null,null,null,null,"R5-10dP","On Freeway (plaque)","—","—","—","—","—","—","24 x 6"]
[null,null,null,null,null,null,null,null,"R5-11","Authorized Vehicles Only","30 x 24","30 x 24","—","—","—","—","—"]
[null,null,null,null,null,null,null,null,"R5-12"]
[null,null,null,null,null,null,null,null,"R5-1a","Wrong Way","36 x 24","42 x 30","36 x 24","42 x 30","30 x 18","42 x 30","—"]
[null,null,null,null,null,null,null,null,"R5-1b","Bicycles Wrong Way","—","—","—","—","12 x 18","—","12 x 18"]
[null,null,null,null,null,null,null,null,"R5-2","No Trucks (symbol)","24 x 24","24 x 24","30 x 30","36 x 36","—","36 x 36","—"]
[null,null,null,null,null,null,null,null,"R5-2aP","Except Local Delivery","24 x 12","24 x 12","30 x 15","36 x 18","—","36 x 36","—"]
[null,null,null,null,null,null,null,null,"R5-2b","No Thru Trucks","24 x 30","24 x 30","30 x 36","36 x 48","—","36 x 36","—"]
[null,null,null,null,null,null,null,null,"R5-3","No Motor Vehicles","24 x 24","24 x 24","—","—","24 x 24","—","24 x 24"]
[null,null,null,null,null,null,null,null,"R5-4","No Commercial Vehicles","24 x 30","24 x 30","36 x 48","36 x 48","—","—","—"]
[null,null,null,null,null,null,null,null,"R5-5","No Vehicles with Lugs","24 x 30","24 x 30","36 x 48","48 x 60","—","—","—"]
[null,null,null,null,null,null,null,null,"R5-6","No Bicycles","24 x 24","24 x 24","30 x 30","36 x 36","24 x 24","48 x 48","18 x 18"]
[null,null,null,null,null,null,null,null,"R5-7","No Non-Motorized Traffic","30 x 24","30 x 24","42 x 24","48 x 30","—","42 x 24","—"]
[null,null,null,null,null,null,null,null,"R5-8","No Motor-Driven Cycles","30 x 24","30 x 24","42 x 24","48 x 30","—","42 x 24","—"]
[null,null,null,null,null,null,null,null,"R6-1","One Way","36 x 12","54 x 18","54 x 18","54 x 18","—","54 x 18","—"]
[null,null,null,null,null,null,null,null,"R6-2","One Way","24 x 30","30 x 36","36 x 48","48 x 60","18 x 24*","36 x 48","—"]
[null,null,null,null,null,null,null,null,"R6-3","Divided Highway Crossing","30 x 24","30 x 24","36 x 30","—","—","36 x 30","—"]
[null,null,null,null,null,null,null,null,"R6-3a","Divided Highway Crossing","30 x 24","30 x 24","36 x 30","—","—","36 x 30","—"]
[null,null,null,null,null,null,null,null,"R6-5P","Roundabout Circulation (plaque)","30 x 30","30 x 30","—","—","—","—","—"]
[null,null,null,null,null,null,null,null,"R6-6","Begin One Way","24 x 30","30 x 36","—","—","—","—","—"]
[null,null,null,null,null,null,null,null,"R6-7","End One Way","24 x 30","30 x 36","—","—","—","—","—"]
[null,null,null,null,null,null,null,null,"R7-1","No Parking Any Time","12 x 18","12 x 18","—","—","—","—","—"]
[null,null,null,null,null,null,null,null,"R7-10","Back-In Parking",null,null,null,null,null,null,"12 x 18"]
[null,null,null,null,null,null,null,null,"R7-107","No Parking Bus Stop","12 x 18","12 x 18","—","—","—","—","—"]
[null,null,null,null,null,null,null,null,"R7-107a","No Parking Bus Stop","12 x 24","12 x 24","—","—","—","—","—"]
[null,null,null,null,null,null,null,null,"R7-107b","No Parking Bus Stop (with transit logo)","12 x 30","12 x 30"]
[null,null,null,null,null,null,null,null,"R7-108","Timed Parking (with time)","12 x 18","12 x 18","—","—","—","—","—"]
[null,null,null,null,null,null,null,null,"R7-111","No Parking Except Electric Vehicles","12 x 18","12 x 18"]
[null,null,null,null,null,null,null,null,"R7-111a","No Parking Except Electric Vehicles (with time)","12 x 18","12 x 18"]
[null,null,null,null,null,null,null,null,"R7-112","Metered Parking Electric Vehicles Only","12 x 18","12 x 18"]
[null,null,null,null,null,null,null,null,"R7-112a","Metered Parking Electric Vehicles Only","12 x 18","12 x 18"]
[null,null,null,null,null,null,null,null,"R7-112b","Metered Parking Electric Vehicles Only","12 x 21","12 x 21"]
[null,null,null,null,null,null,null,null,"R7-113","No Parking Except While Charging","12 x 18","12 x 18"]
[null,null,null,null,null,null,null,null,"R7-113aP","Vehicle Must Be Plugged In (plaque)","12 x 6","12 x 6"]
[null,null,null,null,null,null,null,null,"R7-113bP","Vacate Stall When Carging Completed (plaque)","12 x 6","12 x 6"]
[null,null,null,null,null,null,null,null,"R7-114","Timed Vehicle Charging Only","12 x 18","12 x 18"]
[null,null,null,null,null,null,null,null,"R7-114a","Timed Vehicle Charging Only","12 x 18","12 x 18"]
[null,null,null,null,null,null,null,null,"R7-114b","Timed Vehicle Charging Only","12 x 21","12 x 21"]
[null,null,null,null,null,null,null,null,"R7-2","No Parking (symbol with time)","12 x 18","12 x 18","—","—","—","—","—"]
[null,null,null,null,null,null,null,null,"R7-20","Parking Fee Station","24 x 18","24 x 18","—","—","—","—","—"]
[null,null,null,null,null,null,null,null,"R7-200","No Parking/Restricted Parking (combined sign)","24 x 18","24 x 18","—","—","—","—","—"]
[null,null,null,null,null,null,null,null,"R7-200a","No Parking/Restricted Parking (combined sign)","12 x 36","12 x 36","—","—","—","—","—"]
[null,null,null,null,null,null,null,null,"R7-201aP","Tow Away Zone (plaque)","12 x 6","12 x 6","—","—","—","—","—"]
[null,null,null,null,null,null,null,null,"R7-201P","Tow Away Zone (plaque)","12 x 6","12 x 6","—","—","—","—","—"]
[null,null,null,null,null,null,null,null,"R7-202P","This Side of Sign (plaque)","12 x 6","12 x 6","—","—","—","—","—"]
[null,null,null,null,null,null,null,null,"R7-203","Emergency Snow Route","18 x 24","18 x 24","—","—","—","24 x 30","—"]
[null,null,null,null,null,null,null,null,"R7-21","Parking Restrictions","12 x 18","12 x 18","—","—","—","—","—"]
[null,null,null,null,null,null,null,null,"R7-21aP","Parking Restrictions (plaque)","12 x 6","12 x 6","—","—","—","—","—"]
[null,null,null,null,null,null,null,null,"R7-22","Metered Parking (with times)","12 x 18","12 x 18","—","—","—","—","—"]
[null,null,null,null,null,null,null,null,"R7-2a","No Parking (with time)","12 x 18","12 x 18","—","—","—","—","—"]
[null,null,null,null,null,null,null,null,"R7-3","No Parking Except Sundays and Holidays","12 x 18","12 x 18","—","—","—","—","—"]
[null,null,null,null,null,null,null,null,"R7-4","No Standing Any Time","12 x 18","12 x 18","—","—","—","—","—"]
[null,null,null,null,null,null,null,null,"R7-4a","No Stopping Any Time"]
[null,null,null,null,null,null,null,null,"R7-5","One Hour Parking (with time)","12 x 18","12 x 18","—","—","—","—","—"]
[null,null,null,null,null,null,null,null,"R7-6","No Parking Loading Zone","12 x 18","12 x 18","—","—","—","—","—"]
[null,null,null,null,null,null,null,null,"R7-8","Reserved Parking (with symbol)","12 x 18","12 x 18","—","—","—","—","—"]
[null,null,null,null,null,null,null,null,"R7-8aP","Van Accessible (plaque)","12 x 6","12 x 6","—","—","—","—","—"]
[null,null,null,null,null,null,null,null,"R7-9","No Parking Bike Lane","—","—","—","—","—","—","12 x 18"]
[null,null,null,null,null,null,null,null,"R7-9a","No Parking Bike Lane","—","—","—","—","—","—","12 x 18"]
[null,null,null,null,null,null,null,null,"R8-1","No Parking on Pavement","24 x 30","24 x 30","36 x 48","48 x 60","—","36 x 48","—"]
[null,null,null,null,null,null,null,null,"R8-2","No Parking Except on Shoulder","24 x 30","24 x 30","36 x 48","48 x 60","—","36 x 48","—"]
[null,null,null,null,null,null,null,null,"R8-3","No Parking (symbol)","24 x 24","30 x 30","36 x 36","48 x 48","12 x 12","36 x 36","—"]
[null,null,null,null,null,null,null,null,"R8-3a","No Parking","24 x 30","24 x 30","36 x 36","48 x 48","18 x 24","36 x 36","—"]
[null,null,null,null,null,null,null,null,"R8-3c","No Parking on Pavement","24 x 36","24 x 36","—","—","18 x 30","36 x 54","—"]
[null,null,null,null,null,null,null,null,"R8-3d","No Parking on Bridge","24 x 36","24 x 36","—","—","18 x 30","36 x 54","—"]
[null,null,null,null,null,null,null,null,"R8-3e","No Parking on Tracks","24 x 36","24 x 36","—","—","18 x 30","36 x 54","—"]
[null,null,null,null,null,null,null,null,"R8-3f","No Parking Except on Shoulder","24 x 36","24 x 36","—","—","18 x 30","36 x 54","—"]
[null,null,null,null,null,null,null,null,"R8-4","Emergency Parking Only","30 x 24","30 x 24","30 x 24","48 x 36","—","48 x 36","—"]
[null,null,null,null,null,null,null,null,"R8-5","No Stopping on Pavement","24 x 30","24 x 30","36 x 48","48 x 60","—","36 x 48","—"]
[null,null,null,null,null,null,null,null,"R8-6","No Stopping Except on Shoulder","24 x 30","24 x 30","36 x 48","48 x 60","—","36 x 48","—"]
[null,null,null,null,null,null,null,null,"R8-7","Emergency Stopping Only","30 x 24","30 x 24","48 x 36","48 x 36","—","48 x 36","—"]
[null,null,null,null,null,null,null,null,"R9-1","Walk on Left Facing Traffic","18 x 24","18 x 24","—","—","—","—","—"]
[null,null,null,null,null,null,null,null,"R9-13","No Skaters (symbol)","18 x 18","18 x 18","24 x 24","30 x 30","—","30 x 30","18 x 18"]
[null,null,null,null,null,null,null,null,"R9-14","No Equestrian (symbol)","18 x 18","18 x 18","24 x 24","30 x 30","—","30 x 30","18 x 18"]
[null,null,null,null,null,null,null,null,"R9-15","No Snowmobiles (symbol)","18 x 18","18 x 18","24 x 24","30 x 30","—","30 x 30","18 x 18"]
[null,null,null,null,null,null,null,null,"R9-16","No All-Terrain Vehicles","18 x 18","18 x 18","24 x 24","30 x 30","—","30 x 30","18 x 18"]
[null,null,null,null,null,null,null,null,"R9-19P","Except on Shoulder (plaque)","18 x 12","18 x 12","24 x 18","30 x 24","—","30 x 24","—"]
[null,null,null,null,null,null,null,null,"R9-2","Cross Only at Crosswalks","12 x 18","12 x 18","—","—","—","—","—"]
[null,null,null,null,null,null,null,null,"R9-20","Bicycles Allowed Use of Full Lane","—","—","—","—","—","—","30 x 30"]
[null,null,null,null,null,null,null,null,"R9-21","Bicycles Use Shoulder Only","—","—","—","—","—","—","24 x 30"]
[null,null,null,null,null,null,null,null,"R9-22","Bicycles Must Exit","—","—","—","—","—","—","24 x 30"]
[null,null,null,null,null,null,null,null,"R9-23","Bicycle All Turns from Bike Lane","—","—","—","—","—","—","12 x 18"]
[null,null,null,null,null,null,null,null,"R9-23a","Bicycle Left Turns from Bike Lane","—","—","—","—","—","—","12 x 18"]
[null,null,null,null,null,null,null,null,"R9-23b","Bicycle Left Turn Must Use Turn Box","—","—","—","—","—","—","12 x 18"]
[null,null,null,null,null,null,null,null,"R9-23c","Bicycle Left Turn Must Use Turn Box","—","—","—","—","—","—","12 x 18"]
[null,null,null,null,null,null,null,null,"R9-24","Bicycle All Turns","—","—","—","—","—","—","24 x 6"]
[null,null,null,null,null,null,null,null,"R9-24a","Bicycle All Turns","—","—","—","—","—","—","24 x 6"]
[null,null,null,null,null,null,null,null,"R9-25","Bicycle U and Left Turns","—","—","—","—","—","—","24 x 9"]
[null,null,null,null,null,null,null,null,"R9-25a","Bicycle U and Left Turns","—","—","—","—","—","—","24 x 9"]
[null,null,null,null,null,null,null,null,"R9-25b","Bicycle U and Left Turns","—","—","—","—","—","—","24 x 9"]
[null,null,null,null,null,null,null,null,"R9-26","Bicycle U Turn","—","—","—","—","—","—","24 x 6"]
[null,null,null,null,null,null,null,null,"R9-26a","Bicycle U Turn","—","—","—","—","—","—","24 x 6"]
[null,null,null,null,null,null,null,null,"R9-26b","Bicycle U Turn","—","—","—","—","—","—","24 x 6"]
[null,null,null,null,null,null,null,null,"R9-27","Bicycle Left Turn","—","—","—","—","—","—","24 x 6"]
[null,null,null,null,null,null,null,null,"R9-27a","Bicycle Left Turn","—","—","—","—","—","—","24 x 6"]
[null,null,null,null,null,null,null,null,"R9-27b","Bicycle Left Turn","—","—","—","—","—","—","24 x 6"]
[null,null,null,null,null,null,null,null,"R9-3","No Pedestrian Crossing (symbol)","18 x 18","18 x 18","24 x 24","30 x 30","—","30 x 30","18 x 18"]
[null,null,null,null,null,null,null,null,"R9-3a","No Pedestrian Crossing","12 x 18","12 x 18","—","—","—","—","—"]
[null,null,null,null,null,null,null,null,"R9-3bP","Use Crosswalk (plaque)","18 x 12","18 x 12","—","—","—","—","—"]
[null,null,null,null,null,null,null,null,"R9-3cP","Ride With Traffic (plaque)","—","—","—","—","—","—","12 x 12"]
[null,null,null,null,null,null,null,null,"R9-4","No Hitchhiking (symbol)","18 x 18","18 x 18","—","—","—","24 x 24","—"]
[null,null,null,null,null,null,null,null,"R9-4a","No Hitchhiking","18 x 24","18 x 24","—","—","12 x 18","—","—"]
[null,null,null,null,null,null,null,null,"R9-5","Bicycles Use Pedestrian Signal","—","—","—","—","—","—","12 x 12"]
[null,null,null,null,null,null,null,null,"R9-6","Bicycles Yield to Pedestrian","—","—","—","—","—","—","12 x 18"]
[null,null,null,null,null,null,null,null,"R9-7","Shared-Use Path Restriction","—","—","—","—","—","—","12 x 12"]
[null,null,null,null,null,null,null,null,"Special 1"]
[null,null,null,null,null,null,null,null,"Special 10"]
[null,null,null,null,null,null,null,null,"Special 11"]
[null,null,null,null,null,null,null,null,"Special 2"]
[null,null,null,null,null,null,null,null,"Special 3"]
[null,null,null,null,null,null,null,null,"Special 4"]
[null,null,null,null,null,null,null,null,"Special 5"]
[null,null,null,null,null,null,null,null,"Special 6"]
[null,null,null,null,null,null,null,null,"Special 7"]
[null,null,null,null,null,null,null,null,"Special 8"]
[null,null,null,null,null,null,null,null,"Special 9"]
[null,null,null,null,null,null,null,null,"W10-1","Highway-Rail Grade Crossing Advance Warning","36 dia.","36 dia.","48 dia.","48 dia.","—","48 dia.","24 Dia."]
[null,null,null,null,null,null,null,null,"W10-10","No Signal","24 x 18","24 x 18","—","—","—","—","—"]
[null,null,null,null,null,null,null,null,"W10-11","Storage Space Symbol","36 x 36","36 x 36","48 x 48","48 x 48","—","48 x 48","—"]
[null,null,null,null,null,null,null,null,"W10-11a","Storage Space XX Feet Between Tracks & Highway","30 x 36","30 x 36","—","—","—","—","—"]
[null,null,null,null,null,null,null,null,"W10-11b","Storage Space XX Feet Between Highway & Tracks Behind You","30 x 36","30 x 36","—","—","—","—","—"]
[null,null,null,null,null,null,null,null,"W10-12","Skewed Crossing","36 x 36","36 x 36","48 x 48","48 x 48","—","48 x 48","18 x 18"]
[null,null,null,null,null,null,null,null,"W10-13P","No Gates or Lights (plaque)","30 x 24","30 x 24","—","—","—","—","—"]
[null,null,null,null,null,null,null,null,"W10-14aP","Use Next Crossing (plaque)","30 x 24","30 x 24","—","—","—","—","—"]
[null,null,null,null,null,null,null,null,"W10-14P","Next Crossing (plaque)","30 x 24","30 x 24","—","—","—","—","—"]
[null,null,null,null,null,null,null,null,"W10-15P","Rough Crossing (plaque)","30 x 24","30 x 24","—","—","—","36 x 30","—"]
[null,null,null,null,null,null,null,null,"W10-1aP","Exempt (plaque)","24 x 12","24 x 12","—","—","—","—","—"]
[null,null,null,null,null,null,null,null,"W10-2L","Grade Crossing Left and Intersection ","36 x 36","36 x 36","48 x 48","48 x 48","—","48 x 48","—"]
[null,null,null,null,null,null,null,null,"W10-2R","Grade Crossing Right and Intersection ","36 x 36","36 x 36","48 x 48","48 x 48","—","48 x 48","—"]
[null,null,null,null,null,null,null,null,"W10-3L","Grade Crossing Left and T intersction","36 x 36","36 x 36","48 x 48","48 x 48","—","48 x 48","—"]
[null,null,null,null,null,null,null,null,"W10-3R","Grade Crossing Right and T intersction","36 x 36","36 x 36","48 x 48","48 x 48","—","48 x 48","—"]
[null,null,null,null,null,null,null,null,"W10-4L","Grade Crossing Left and T intersction","36 x 36","36 x 36","48 x 48","48 x 48","—","48 x 48","—"]
[null,null,null,null,null,null,null,null,"W10-4R","Grade Crossing Right and T intersction","36 x 36","36 x 36","48 x 48","48 x 48","—","48 x 48","—"]
[null,null,null,null,null,null,null,null,"W10-5","Low Ground Clearance","36 x 36","36 x 36","—","—","—","—","—"]
[null,null,null,null,null,null,null,null,"W10-5P","Low Ground Clearance (plaque)","30 x 24","30 x 24","48 x 48","48 x 48","—","48 x 48","—"]
[null,null,null,null,null,null,null,null,"W10-7","Light Rail Activiated Blank-Out Symbol","24 x 24","24 x 24","—","—","—","—","—"]
[null,null,null,null,null,null,null,null,"W10-8","Trains May Exceed XX MPH","36 x 36","36 x 36","48 x 48","48 x 48","—","48 x 48","—"]
[null,null,null,null,null,null,null,null,"W10-9","No Train Horn","36 x 36","36 x 36","48 x 48","48 x 48","—","48 x 48","—"]
[null,null,null,null,null,null,null,null,"W10-9P","No Train Horn (plaque)","30 x 24","30 x 24","—","—","—","—","18 x 12"]
[null,null,null,null,null,null,null,null,"W1-10aL","Left Combination Curve/Intersection","36 x 36","36 x 36","36 x 36","48 x 48","—","—","—"]
[null,null,null,null,null,null,null,null,"W1-10aR","Right Combination Curve/Intersection","36 x 36","36 x 36","36 x 36","48 x 48","—","—","—"]
[null,null,null,null,null,null,null,null,"W1-10bL","Left Combination Curve/Intersection","36 x 36","36 x 36","36 x 36","48 x 48","—","—","—"]
[null,null,null,null,null,null,null,null,"W1-10bR","Right Combination Curve/Intersection","36 x 36","36 x 36","36 x 36","48 x 48","—","—","—"]
[null,null,null,null,null,null,null,null,"W1-10cL","Left Combination Curve/Intersection","36 x 36","36 x 36","36 x 36","48 x 48","—","—","—"]
[null,null,null,null,null,null,null,null,"W1-10cR","Right Combination Curve/Intersection","36 x 36","36 x 36","36 x 36","48 x 48","—","—","—"]
[null,null,null,null,null,null,null,null,"W1-10dL","Left Combination Reverse Curve/Intersection","36 x 36","36 x 36","36 x 36","48 x 48","—","—","—"]
[null,null,null,null,null,null,null,null,"W1-10dR","Right Combination Reverse Curve/Intersection","36 x 36","36 x 36","36 x 36","48 x 48","—","—","—"]
[null,null,null,null,null,null,null,null,"W1-10eL","Left Combination Reverse Curve/Intersection","36 x 36","36 x 36","36 x 36","48 x 48","—","—","—"]
[null,null,null,null,null,null,null,null,"W1-10eR","Right Combination Reverse Curve/Intersection","36 x 36","36 x 36","36 x 36","48 x 48","—","—","—"]
[null,null,null,null,null,null,null,null,"W1-10L","Left Combination Curve/Intersection","36 x 36","36 x 36","36 x 36","48 x 48","—","—","—"]
[null,null,null,null,null,null,null,null,"W1-10R","Right Combination Curve/Intersection","36 x 36","36 x 36","36 x 36","48 x 48","—","—","—"]
[null,null,null,null,null,null,null,null,"W11-1","Bicycle","30 x 30","30 x 30","36 x 36","—","—","48 x 48","18 x 18"]
[null,null,null,null,null,null,null,null,"W1-11","Hairpin Curve","30 x 30","30 x 30","36 x 36","48 x 48","—","48 x 48","—"]
[null,null,null,null,null,null,null,null,"W11-10","Truck","30 x 30","36 x 36","36 x 36","—","24 x 24","48 x 48","—"]
[null,null,null,null,null,null,null,null,"W11-11","Golf Cart","30 x 30","36 x 36","36 x 36","—","24 x 24","48 x 48","—"]
[null,null,null,null,null,null,null,null,"W11-12P","Emergency Signal Ahead (plaque)","36 x 30","36 x 30","36 x 30","—","—","—","—"]
[null,null,null,null,null,null,null,null,"W11-14","Horse-Drawn Vehicle","30 x 30","36 x 36","36 x 36","—","24 x 24","48 x 48","—"]
[null,null,null,null,null,null,null,null,"W11-15","Trail Crossing","30 x 30","36 x 36","36 x 36","—","24 x 24","48 x 48","18 x 18"]
[null,null,null,null,null,null,null,null,"W11-15a","Trail Crossing","30 x 30","36 x 36","36 x 36","—","24 x 24","48 x 48","18 x 18"]
[null,null,null,null,null,null,null,null,"W11-15P","Trail X-ing (plaque)","24 x 18","24 x 18","30 x 24","—","—","36 x 30","18 x 12"]
[null,null,null,null,null,null,null,null,"W11-16","Bear","30 x 30","36 x 36","36 x 36","—","24 x 24","48 x 48","—"]
[null,null,null,null,null,null,null,null,"W11-17","Sheep","30 x 30","36 x 36","36 x 36","—","24 x 24","48 x 48","—"]
[null,null,null,null,null,null,null,null,"W11-18","Bighorn Sheep","30 x 30","36 x 36","36 x 36","—","24 x 24","48 x 48","—"]
[null,null,null,null,null,null,null,null,"W11-19","Donkey","30 x 30","36 x 36","36 x 36","—","24 x 24","48 x 48","—"]
[null,null,null,null,null,null,null,null,"W11-2","Pedestrian","30 x 30","36 x 36","36 x 36","—","—","48 x 48","18 x 18"]
[null,null,null,null,null,null,null,null,"W11-20","Elk","30 x 30","36 x 36","36 x 36","—","24 x 24","48 x 48","—"]
[null,null,null,null,null,null,null,null,"W11-21","Moose","30 x 30","36 x 36","36 x 36","—","24 x 24","48 x 48","—"]
[null,null,null,null,null,null,null,null,"W11-22","Wild Horse","30 x 30","36 x 36","36 x 36","—","24 x 24","48 x 48","—"]
[null,null,null,null,null,null,null,null,"W11-3","Deer","30 x 30","36 x 36","36 x 36","—","24 x 24","48 x 48","—"]
[null,null,null,null,null,null,null,null,"W1-13","Truck Rollover","36 x 36","36 x 36","36 x 36","48 x 48","—","48 x 48","—"]
[null,null,null,null,null,null,null,null,"W11-4","Cattle","30 x 30","36 x 36","36 x 36","—","24 x 24","48 x 48","—"]
[null,null,null,null,null,null,null,null,"W11-5","Farm Vehicle","30 x 30","36 x 36","36 x 36","—","24 x 24","48 x 48","—"]
[null,null,null,null,null,null,null,null,"W1-15","270 Degree Loop","30 x 30","30 x 30","36 x 36","48 x 48","—","48 x 48","—"]
[null,null,null,null,null,null,null,null,"W11-6","Snowmobile","30 x 30","36 x 36","36 x 36","—","24 x 24","48 x 48","—"]
[null,null,null,null,null,null,null,null,"W11-7","Equestrian","30 x 30","36 x 36","36 x 36","—","24 x 24","48 x 48","—"]
[null,null,null,null,null,null,null,null,"W11-8","Emergency Vehicle","30 x 30","36 x 36","36 x 36","—","24 x 24","48 x 48","—"]
[null,null,null,null,null,null,null,null,"W11-9","Handicapped","30 x 30","36 x 36","36 x 36","—","—","48 x 48","—"]
[null,null,null,null,null,null,null,null,"W1-1L","Turn Left","30 x 30","36 x 36","36 x 36","36 x 36","—","48 x 48","18 x 18"]
[null,null,null,null,null,null,null,null,"W1-1R","Turn Right","30 x 30","36 x 36","36 x 36","36 x 36","—","48 x 48","18 x 18"]
[null,null,null,null,null,null,null,null,"W12-1","Double Arrow","30 x 30","36 x 36","36 x 36","—","—","—","—"]
[null,null,null,null,null,null,null,null,"W12-2","Low Clearance Advance","36 x 36","36 x 36","48 x 48","48 x 48","30 x 30","—","18 x 18"]
[null,null,null,null,null,null,null,null,"W12-2a","Low Clearance Overhead","84 x 24","84 x 24","84 x 24","84 x 24","—","—","—"]
[null,null,null,null,null,null,null,null,"W12-2b","Low Clearance - Lane Overhead","102 x 24","102 x 24","102 x 24","102 x 24","—","—","—"]
[null,null,null,null,null,null,null,null,"W1-2L","Curve Left","30 x 30","36 x 36","36 x 36","36 x 36","—","48 x 48","18 x 18"]
[null,null,null,null,null,null,null,null,"W1-2R","Curve Right","30 x 30","36 x 36","36 x 36","36 x 36","—","48 x 48","18 x 18"]
[null,null,null,null,null,null,null,null,"W13-10","Combination Horizontal Alignment/Advisory Exit Speed","24 x 36","24 x 36","36 x 54","36 x 54","—","48 x 72","—"]
[null,null,null,null,null,null,null,null,"W13-11","Combination Horizontal Alignment/Advisory Ramp Speed","24 x 36","24 x 36","36 x 54","36 x 54","—","48 x 72","—"]
[null,null,null,null,null,null,null,null,"W13-12","Combination Horizontal Alignment/Advisory Exit Speed","24 x 42","24 x 42","36 x 66","36 x 66","—","48 x 84"]
[null,null,null,null,null,null,null,null,"W13-13","Combination Horizontal Alignment/Advisory Ramp Speed","24 x 42","24 x 42","36 x 66","36 x 66","—","48 x 84"]
[null,null,null,null,null,null,null,null,"W13-1aP","Advisory Speed (plaque)","48 x 15","48 x 15","60 x 18","60 x 18","48 x 15","72 x 24","—"]
[null,null,null,null,null,null,null,null,"W13-1P","Advisory Speed (plaque)","18 x 18","18 x 18","24 x 24","30 x 30","—","30 x 30","—"]
[null,null,null,null,null,null,null,null,"W13-2","Advisory Exit Speed","24 x 30","24 x 30","36 x 48","36 x 48","—","48 x 60","—"]
[null,null,null,null,null,null,null,null,"W13-20","Vehicle Speed Feedback Sign","24 x 30","30 x 36","36 x 48","48 x 60","—","—"]
[null,null,null,null,null,null,null,null,"W13-20aP","Vehicle Speed Feedback (plaque)","24 x 18","30 x 24","36 x 30","48 x 36","—","—"]
[null,null,null,null,null,null,null,null,"W13-3","Advisory Ramp Speed","24 x 30","24 x 30","36 x 48","36 x 48","—","48 x 60","—"]
[null,null,null,null,null,null,null,null,"W13-6","Combination Horizontal Alignment/Advisory Exit Speed","24 x 42","24 x 42","36 x 66","36 x 66","—","48 x 84","—"]
[null,null,null,null,null,null,null,null,"W13-7","Combination Horizontal Alignment/Advisory Ramp Speed","24 x 42","24 x 42","36 x 66","36 x 66","—","48 x 84","—"]
[null,null,null,null,null,null,null,null,"W13-8","Combination Horizontal Alignment/Advisory Exit Speed","24 x 42","24 x 42","36 x 66","36 x 66","—","48 x 84","—"]
[null,null,null,null,null,null,null,null,"W13-9","Combination Horizontal Alignment/Advisory Ramp Speed","24 x 42","24 x 42","36 x 66","36 x 66","—","48 x 84","—"]
[null,null,null,null,null,null,null,null,"W1-3L","Left Reverse Turn","30 x 30","36 x 36","36 x 36","36 x 36","—","48 x 48","18 x 18"]
[null,null,null,null,null,null,null,null,"W1-3R","Right Reverse Turn","30 x 30","36 x 36","36 x 36","36 x 36","—","48 x 48","18 x 18"]
[null,null,null,null,null,null,null,null,"W14-1","Dead End","30 x 30","36 x 36","36 x 36","—","24 x 24","48 x 48","—"]
[null,null,null,null,null,null,null,null,"W14-1aL","Dead End (with left arrow)","36 x 9","36 x 9","—","—","—","—","—"]
[null,null,null,null,null,null,null,null,"W14-1aR","Dead End (with right arrow)","36 x 9","36 x 9","—","—","—","—","—"]
[null,null,null,null,null,null,null,null,"W14-2","No Outlet","30 x 30","36 x 36","36 x 36","—","24 x 24","48 x 48","—"]
[null,null,null,null,null,null,null,null,"W14-2aL","No Outlet (with left arrow)","36 x 9","36 x 9","—","—","—","—","—"]
[null,null,null,null,null,null,null,null,"W14-2aR","No Outlet (with right arrow)","36 x 9","36 x 9","—","—","—","—","—"]
[null,null,null,null,null,null,null,null,"W14-3","No Passing Zone (pennant)","48 x 48 x 36","48 x 48 x 36","64 x 64 x 48","64 x 64 x 48","40 x 40 x 30","64 x 64 x 48","—"]
[null,null,null,null,null,null,null,null,"W1-4L","Left Reverse Curve","30 x 30","36 x 36","36 x 36","36 x 36","—","48 x 48","18 x 18"]
[null,null,null,null,null,null,null,null,"W1-4R","Right Reverse Curve","30 x 30","36 x 36","36 x 36","36 x 36","—","48 x 48","18 x 18"]
[null,null,null,null,null,null,null,null,"W15-1","Playground","30 x 30","36 x 36","36 x 36","—","24 x 24","48 x 48","18 x 18"]
[null,null,null,null,null,null,null,null,"W1-5L","Winding Road Left","30 x 30","36 x 36","36 x 36","36 x 36","—","48 x 48","18 x 18"]
[null,null,null,null,null,null,null,null,"W1-5R","Winding Road Right","30 x 30","36 x 36","36 x 36","36 x 36","—","48 x 48","18 x 18"]
[null,null,null,null,null,null,null,null,"W16-10aP","Photo Enforced (plaque)","24 x 18","24 x 18","36 x 30","—","—","48 x 36","—"]
[null,null,null,null,null,null,null,null,"W16-10P","Photo Enforced (symbol plaque)","24 x 12","24 x 12","36 x 18","—","—","48 x 24","—"]
[null,null,null,null,null,null,null,null,"W16-12aP","Roundabout (plaque)","24 x 12","24 x 12","—","—","—","—","—"]
[null,null,null,null,null,null,null,null,"W16-12P","Traffic Circle (plaque)","24 x 18","24 x 18","—","—","—","—","—"]
[null,null,null,null,null,null,null,null,"W16-13P","When Flashing (plaque)","24 x 18","24 x 18","—","—","—","—","—"]
[null,null,null,null,null,null,null,null,"W16-15P","New (plaque)","24 x 12","24 x 12","—","—","—","—","—"]
[null,null,null,null,null,null,null,null,"W16-18P","Notice (plaque)","24 x 12","24 x 12","—","—","—","—","—"]
[null,null,null,null,null,null,null,null,"W16-1aP","In Street (plaque)","18 x 12","18 x 12","24 x 18","—","—","24 x 18","18 x 12"]
[null,null,null,null,null,null,null,null,"W16-1P","In Road (plaque)","18 x 12","18 x 12","24 x 18","—","—","24 x 18","18 x 12"]
[null,null,null,null,null,null,null,null,"W16-20P","Except Bicycles (plaque)","24 x 12","24 x 12","—","—","—","—","24 x 12"]
[null,null,null,null,null,null,null,null,"W16-21P","2-Way Bicycle Cross Traffic (plaque)","24 x 12","24 x 12","—","—","—","—","—"]
[null,null,null,null,null,null,null,null,"W16-2aP","XX Ft (plaque)","24 x 12","24 x 12","—","—","—","30 x 18","12 x 9"]
[null,null,null,null,null,null,null,null,"W16-2P","XX Feet (plaque)","24 x 18","24 x 18","30 x 24","30 x 24","—","30 x 24","18 x 12"]
[null,null,null,null,null,null,null,null,"W16-3aP","XX Miles (1-line plaque)","30 x 12","30 x 12","—","—","—","—","—"]
[null,null,null,null,null,null,null,null,"W16-3P","XX Miles (2-line plaque)","30 x 24","30 x 24","—","—","—","—","—"]
[null,null,null,null,null,null,null,null,"W16-4P","Next XX Feet (plaque)","30 x 24","30 x 24","—","—","—","—","—"]
[null,null,null,null,null,null,null,null,"W16-5PL","Left Arrow (plaque)","21 x 15","21 x 15","—","—","—","30 x 21","—"]
[null,null,null,null,null,null,null,null,"W16-5PR","Right Arrow (plaque)","21 x 15","21 x 15","—","—","—","30 x 21","—"]
[null,null,null,null,null,null,null,null,"W16-6PL","Left Turn Arrow (plaque)","21 x 15","21 x 15","—","—","—","30 x 21","—"]
[null,null,null,null,null,null,null,null,"W16-6PR","Right Turn Arrow (plaque)","21 x 15","21 x 15","—","—","—","30 x 21","—"]
[null,null,null,null,null,null,null,null,"W16-7aP","Dual Downward Diagonal Arrow (plaque)","21 x 15","21 x 15","—","—","—","30 x 21","—"]
[null,null,null,null,null,null,null,null,"W16-7PL","Left Diagonal Downward Arrow (plaque)","21 x 15","21 x 15","—","—","—","30 x 21","12 x 9"]
[null,null,null,null,null,null,null,null,"W16-7PR","Right Diagonal Downward Arrow (plaque)","21 x 15","21 x 15","—","—","—","30 x 21","12 x 9"]
[null,null,null,null,null,null,null,null,"W16-8aP","Advance Street Name (2-line plaque)","Varies x 15","Varies x 15","—","—","—","—","—"]
[null,null,null,null,null,null,null,null,"W16-8P","Advance Street Name (1-line plaque)","Varies x 8","Varies x 8","—","—","—","—","—"]
[null,null,null,null,null,null,null,null,"W16-9P","Ahead (plaque)","24 x 12","24 x 12","30 x 18","—","—","30 x 18","24 x 12"]
[null,null,null,null,null,null,null,null,"W1-6L","One Direction Large Arrow Left","48 x 24","48 x 24","60 x 30","60 x 30","—","60 x 30","24 x 12"]
[null,null,null,null,null,null,null,null,"W1-6R","One Direction Large Arrow Right","48 x 24","48 x 24","60 x 30","60 x 30","—","60 x 30","24 x 12"]
[null,null,null,null,null,null,null,null,"W1-7","Two Direction Large Arrow","48 x 24","48 x 24","—","—","—","60 x 30","24 x 12"]
[null,null,null,null,null,null,null,null,"W17-1","Speed Hump","30 x 30","36 x 36","—","—","24 x 24","48 x 48","—"]
[null,null,null,null,null,null,null,null,"W18-1","No Traffic Signs","30 x 30","36 x 36","—","—","24 x 24","36 x 36","—"]
[null,null,null,null,null,null,null,null,"W1-8L","Left Chevron","18 x 24","18 x 24","30 x 36","36 x 48","—","24 x 30","—"]
[null,null,null,null,null,null,null,null,"W1-8R","Right Chevron","18 x 24","18 x 24","30 x 36","36 x 48","—","24 x 30","—"]
[null,null,null,null,null,null,null,null,"W19-1","Freeway Ends XX Miles","—","—","—","144 x 48","—","—","—"]
[null,null,null,null,null,null,null,null,"W19-2","Expressway Ends XX Miles","—","—","144 x 48","—","—","—","—"]
[null,null,null,null,null,null,null,null,"W19-3","Freeway Ends","—","—","—","48 x 48","—","—","—"]
[null,null,null,null,null,null,null,null,"W19-4","Expressway Ends","—","—","48 x 48","—","—","—","—"]
[null,null,null,null,null,null,null,null,"W19-5","All Traffic Must Exit","—","—","90 x 48","90 x 48","—","—","—"]
[null,null,null,null,null,null,null,null,"W2-1","Cross Road","30 x 30","30 x 30","36 x 36","—","24 x 24","48 x 48","18 x 18"]
[null,null,null,null,null,null,null,null,"W2-2L","Side Road Left","30 x 30","30 x 30","36 x 36","—","24 x 24","48 x 48","18 x 18"]
[null,null,null,null,null,null,null,null,"W2-2R","Side Road Right","30 x 30","30 x 30","36 x 36","—","24 x 24","48 x 48","18 x 18"]
[null,null,null,null,null,null,null,null,"W23-2","New Traffic Pattern Ahead","36 x 36","36 x 36","—","—","—","—","—"]
[null,null,null,null,null,null,null,null,"W23-2a","New Signal Operation Ahead","36 x 36","36 x 36","48 x 48","48 x 48","—","—","—"]
[null,null,null,null,null,null,null,null,"W2-3L","Side Road Left","30 x 30","30 x 30","36 x 36","—","24 x 24","48 x 48","18 x 18"]
[null,null,null,null,null,null,null,null,"W2-3R","Side Road Right","30 x 30","30 x 30","36 x 36","—","24 x 24","48 x 48","18 x 18"]
[null,null,null,null,null,null,null,null,"W2-4","T-Symbol","30 x 30","30 x 30","36 x 36","—","24 x 24","48 x 48","18 x 18"]
[null,null,null,null,null,null,null,null,"W2-5","Y-Symbol","30 x 30","30 x 30","36 x 36","—","24 x 24","48 x 48","18 x 18"]
[null,null,null,null,null,null,null,null,"W25-1","Oncoming Traffic Has Extended Green","24 x 30","24 x 30","—","—","—","—","—"]
[null,null,null,null,null,null,null,null,"W25-2","Oncoming Traffic May Have Extended Green","24 x 30","24 x 30","—","—","—","—","—"]
[null,null,null,null,null,null,null,null,"W2-6","Circular Intersection","30 x 30","30 x 30","36 x 36","—","24 x 24","48 x 48","—"]
[null,null,null,null,null,null,null,null,"W26-1","Watch for Stopped Traffic","36 x 36","36 x 36","48 x 48","48 x 48","—","—","—"]
[null,null,null,null,null,null,null,null,"W2-7L","Offset Side Roads (symbol)","30 x 30","30 x 30","36 x 36","—","24 x 24","48 x 48","—"]
[null,null,null,null,null,null,null,null,"W2-7R","Offset Side Roads (symbol)","30 x 30","30 x 30","36 x 36","—","24 x 24","48 x 48","—"]
[null,null,null,null,null,null,null,null,"W2-8","Double Side Roads (symbol)","30 x 30","30 x 30","36 x 36","—","24 x 24","48 x 48","—"]
[null,null,null,null,null,null,null,null,"W3-1","Stop Ahead (symbol)","30 x 30","30 x 30","48 x 48","48 x 48","30 x 30","—","18 x 18"]
[null,null,null,null,null,null,null,null,"W3-1a","Stop Ahead","30 x 30","30 x 30","48 x 48","48 x 48","30 x 30","—","—"]
[null,null,null,null,null,null,null,null,"W3-2","Yield Ahead (symbol)","30 x 30","30 x 30","48 x 48","48 x 48","30 x 30","—","18 x 18"]
[null,null,null,null,null,null,null,null,"W3-2a","Yield Ahead","30 x 30","30 x 30","48 x 48","48 x 48","30 x 30","—","—"]
[null,null,null,null,null,null,null,null,"W3-3","Signal Ahead (symbol)","30 x 30","30 x 30","48 x 48","48 x 48","30 x 30","—","18 x 18"]
[null,null,null,null,null,null,null,null,"W3-3a","Signal Ahead","30 x 30","30 x 30","48 x 48","48 x 48","30 x 30","—","—"]
[null,null,null,null,null,null,null,null,"W3-4","Be Prepared to Stop","36 x 36","36 x 36","48 x 48","48 x 48","30 x 30","—","—"]
[null,null,null,null,null,null,null,null,"W3-5","Reduced Speed Limit Ahead","36 x 36","36 x 36","48 x 48","48 x 48","—","—","—"]
[null,null,null,null,null,null,null,null,"W3-5a","XX MPH Speed Zone Ahead","36 x 36","36 x 36","48 x 48","48 x 48","—","—","—"]
[null,null,null,null,null,null,null,null,"W3-6","Draw Bridge Ahead","36 x 36","36 x 36","48 x 48","—","—","60 x 60","—"]
[null,null,null,null,null,null,null,null,"W3-7","Ramp Meter Ahead","36 x 36","36 x 36","—","—","—","—","—"]
[null,null,null,null,null,null,null,null,"W3-8","Ramp Metered When Flashing","36 x 36","36 x 36","—","—","—","—","—"]
[null,null,null,null,null,null,null,null,"W4-1L","Merge","36 x 36","36 x 36","48 x 48","48 x 48","30 x 30","—","—"]
[null,null,null,null,null,null,null,null,"W4-1R","Merge","36 x 36","36 x 36","48 x 48","48 x 48","30 x 30","—","—"]
[null,null,null,null,null,null,null,null,"W4-2L","Left Lane Ends (symbol)","36 x 36","36 x 36","48 x 48","48 x 48","30 x 30","—","—"]
[null,null,null,null,null,null,null,null,"W4-2R","Right Lane Ends (symbol)","36 x 36","36 x 36","48 x 48","48 x 48","30 x 30","—","—"]
[null,null,null,null,null,null,null,null,"W4-3L","Lane Added (symbol)","36 x 36","36 x 36","48 x 48","48 x 48","30 x 30","—","—"]
[null,null,null,null,null,null,null,null,"W4-3R","Lane Added (symbol)","36 x 36","36 x 36","48 x 48","48 x 48","30 x 30","—","—"]
[null,null,null,null,null,null,null,null,"W4-4aPL","Traffic From Left Does Not Stop (plaque)","24 x 12","24 x 12","36 x 18","—","—","48 x 24","—"]
[null,null,null,null,null,null,null,null,"W4-4aPR","Traffic From Right Does Not Stop (plaque)","24 x 12","24 x 12","36 x 18","—","—","48 x 24","—"]
[null,null,null,null,null,null,null,null,"W4-4bP","Oncoming Traffic Does Not Stop (plaque)","24 x 12","24 x 12","36 x 18","—","—","48 x 24","—"]
[null,null,null,null,null,null,null,null,"W4-4P","Cross Traffic Does Not Stop (plaque)","24 x 12","24 x 12","36 x 18","—","—","48 x 24","—"]
[null,null,null,null,null,null,null,null,"W4-5","Entering Roadway Merge","36 x 36","36 x 36","48 x 48","—","—","—","—"]
[null,null,null,null,null,null,null,null,"W4-5P","No Merge Area (plaque)","18 x 24","18 x 24","24 x 30","—","—","—","—"]
[null,null,null,null,null,null,null,null,"W4-6","Entering Roadway Added Lane","36 x 36","36 x 36","48 x 48","—","—","—","—"]
[null,null,null,null,null,null,null,null,"W4-7L","Thru Traffic Merge Left","36 x 36","36 x 36","48 x 48","48 x 48","30 x 30","—","—"]
[null,null,null,null,null,null,null,null,"W4-7R","Thru Traffic Merge Right","36 x 36","36 x 36","48 x 48","48 x 48","30 x 30","—","—"]
[null,null,null,null,null,null,null,null,"W5-1","Road Narrows","36 x 36","36 x 36","48 x 48","48 x 48","30 x 30","—","—"]
[null,null,null,null,null,null,null,null,"W5-2","Narrow Bridge","36 x 36","36 x 36","48 x 48","48 x 48","30 x 30","—","18 x 18"]
[null,null,null,null,null,null,null,null,"W5-3","One Lane Bridge","36 x 36","36 x 36","48 x 48","48 x 48","30 x 30","—","—"]
[null,null,null,null,null,null,null,null,"W5-4","Ramp Narrows","36 x 36","36 x 36","48 x 48","48 x 48","30 x 30","—","—"]
[null,null,null,null,null,null,null,null,"W5-4a","Path Narrows","—","—","—","—","—","—","18 x 18"]
[null,null,null,null,null,null,null,null,"W6-1","Divided Highway (symbol)","36 x 36","36 x 36","48 x 48","48 x 48","—","—","—"]
[null,null,null,null,null,null,null,null,"W6-1a","Divided Highway","30 x 30","36 x 36","48 x 48","48 x 48","30 x 30","—","—"]
[null,null,null,null,null,null,null,null,"W6-2","Divided Highway Ends (symbol)","36 x 36","36 x 36","48 x 48","48 x 48","—","—","—"]
[null,null,null,null,null,null,null,null,"W6-2a","Divided Highway Ends","36 x 36","36 x 36","48 x 48","48 x 48","30 x 30","—","—"]
[null,null,null,null,null,null,null,null,"W6-2b","Divided Road Ends","30 x 30","36 x 36","36 x 36","36 x 36","24 x 24","48 x 48","—"]
[null,null,null,null,null,null,null,null,"W6-3","Two-Way Traffic","36 x 36","36 x 36","48 x 48","48 x 48","—","—","—"]
[null,null,null,null,null,null,null,null,"W6-4","Two-Way Traffic","12 x 18","12 x 18","12 x 18","12 x 18","—","—","—"]
[null,null,null,null,null,null,null,null,"W7-1","Hill","30 x 30","36 x 36","36 x 36","36 x 36","24 x 24","48 x 48","—"]
[null,null,null,null,null,null,null,null,"W7-1a","Hill with Grade","30 x 30","36 x 36","36 x 36","36 x 36","24 x 24","48 x 48","—"]
[null,null,null,null,null,null,null,null,"W7-2bP","Trucks Use Lower Gear (plaque)","24 x 18","24 x 18","—","—","—","—","—"]
[null,null,null,null,null,null,null,null,"W7-2P","Use Low Gear (plaque)","24 x 18","24 x 18","—","—","—","—","—"]
[null,null,null,null,null,null,null,null,"W7-3aP","Next XX Miles (plaque)","24 x 18","24 x 18","—","—","—","—","—"]
[null,null,null,null,null,null,null,null,"W7-3bP","XX% Grade, XX Miles (plaque)","24 x 18","24 x 18","—","—","—","—","—"]
[null,null,null,null,null,null,null,null,"W7-3P","XX% Grade (plaque)","24 x 18","24 x 18","—","—","—","—","—"]
[null,null,null,null,null,null,null,null,"W7-4","Runaway Truck Ramp XX Miles","84 x 48","84 x 48","120 x 72","120 x 72","—","—","—"]
[null,null,null,null,null,null,null,null,"W7-4b","Runaway Truck Ramp (with arrow)","84 x 54","84 x 54","120 x 78","120 x 78","—","—","—"]
[null,null,null,null,null,null,null,null,"W7-4c","Truck Escape Ramp","78 x 60","78 x 60","78 x 60","78 x 60","—","—","—"]
[null,null,null,null,null,null,null,null,"W7-4dP","Sand (plaque)","24 x 12","24 x 12","24 x 12","24 x 12","—","—","—"]
[null,null,null,null,null,null,null,null,"W7-4eP","Gravel (plaque)","24 x 12","24 x 12","24 x 12","24 x 12","—","—","—"]
[null,null,null,null,null,null,null,null,"W7-4fP","Paved (plaque)","24 x 12","24 x 12","24 x 12","24 x 12","—","—","—"]
[null,null,null,null,null,null,null,null,"W7-5","Bicycle Hill","30 x 30","30 x 30","—","—","—","—","18 x 18"]
[null,null,null,null,null,null,null,null,"W7-6","Hill Blocks View","30 x 30","36 x 36","36 x 36","—","—","48 x 48","—"]
[null,null,null,null,null,null,null,null,"W8-1","Bump","30 x 30","36 x 36","36 x 36","48 x 48","24 x 24","48 x 48","18 x 18"]
[null,null,null,null,null,null,null,null,"W8-10","Bicycle Slippery When Wet (symbol)","30 x 30","30 x 30","—","—","—","—","18 x 18"]
[null,null,null,null,null,null,null,null,"W8-10P","Slippery When Wet (plaque)","12 x 9","12 x 9","—","—","—","—","12 x 9"]
[null,null,null,null,null,null,null,null,"W8-11","Uneven Lanes","36 x 36","36 x 36","36 x 36","48 x 48","—","48 x 48","—"]
[null,null,null,null,null,null,null,null,"W8-12","No Center Line","36 x 36","36 x 36","36 x 36","48 x 48","—","—","—"]
[null,null,null,null,null,null,null,null,"W8-13","Bridge Ices Before Road","36 x 36","36 x 36","36 x 36","48 x 48","24 x 24","48 x 48","—"]
[null,null,null,null,null,null,null,null,"W8-14","Fallen Rocks","30 x 30","36 x 36","36 x 36","48 x 48","24 x 24","48 x 48","—"]
[null,null,null,null,null,null,null,null,"W8-15","Grooved Pavement","30 x 30","36 x 36","36 x 36","48 x 48","24 x 24","48 x 48","—"]
[null,null,null,null,null,null,null,null,"W8-15aP","Motorcycle (plaque)","24 x 18","24 x 18","30 x 24","36 x 30","—","36 x 30","—"]
[null,null,null,null,null,null,null,null,"W8-16","Metal Bridge Deck","30 x 30","36 x 36","36 x 36","48 x 48","24 x 24","48 x 48","—"]
[null,null,null,null,null,null,null,null,"W8-17","Shoulder Drop Off (symbol)","30 x 30","36 x 36","36 x 36","48 x 48","24 x 24","48 x 48","—"]
[null,null,null,null,null,null,null,null,"W8-17P","Shoulder Drop-Off (plaque)","24 x 18","24 x 18","30 x 24","36 x 30","—","36 x 30","—"]
[null,null,null,null,null,null,null,null,"W8-18","Road May Flood","36 x 36","36 x 36","36 x 36","48 x 48","24 x 24","48 x 48","—"]
[null,null,null,null,null,null,null,null,"W8-19","Flood Gauge","12 x 72","12 x 72","—","—","—","—","—"]
[null,null,null,null,null,null,null,null,"W8-2","Dip","30 x 30","36 x 36","36 x 36","48 x 48","24 x 24","48 x 48","18 x 18"]
[null,null,null,null,null,null,null,null,"W8-21","Gusty Winds Area","36 x 36","36 x 36","36 x 36","48 x 48","24 x 24","48 x 48","—"]
[null,null,null,null,null,null,null,null,"W8-22","Fog Area","36 x 36","36 x 36","36 x 36","48 x 48","24 x 24","48 x 48","—"]
[null,null,null,null,null,null,null,null,"W8-23","No Shoulder","36 x 36","36 x 36","36 x 36","48 x 48","24 x 24","48 x 48","—"]
[null,null,null,null,null,null,null,null,"W8-25","Shoulder Ends","30 x 30","36 x 36","36 x 36","48 x 48","24 x 24","48 x 48","—"]
[null,null,null,null,null,null,null,null,"W8-26","Road Ends XX FT","30 x 30","36 x 36","—","—","—","—","—"]
[null,null,null,null,null,null,null,null,"W8-26a","Street Ends XX FT","30 x 30","36 x 36","—","—","—","—","—"]
[null,null,null,null,null,null,null,null,"W8-3","Pavement Ends","36 x 36","36 x 36","48 x 48","—","30 x 30","—","18 x 18"]
[null,null,null,null,null,null,null,null,"W8-4","Soft Shoulder","36 x 36","36 x 36","48 x 48","48 x 48","24 x 24","48 x 48","—"]
[null,null,null,null,null,null,null,null,"W8-5","Slippery When Wet","30 x 30","36 x 36","36 x 36","48 x 48","24 x 24","48 x 48","—"]
[null,null,null,null,null,null,null,null,"W8-5aP","Ice (plaque)","24 x 12","24 x 12","30 x 18","30 x 18","—","—","—"]
[null,null,null,null,null,null,null,null,"W8-5bP","Steel Deck (plaque)","24 x 18","24 x 18","30 x 24","36 x 30","—","36 x 30","—"]
[null,null,null,null,null,null,null,null,"W8-5cP","Excess Oil (plaque)","24 x 18","24 x 18","30 x 24","36 x 30","—","36 x 30","—"]
[null,null,null,null,null,null,null,null,"W8-5P","When Wet (plaque)","24 x 18","24 x 18","30 x 24","36 x 30","—","36 x 30","—"]
[null,null,null,null,null,null,null,null,"W8-6","Truck Crossing","36 x 36","36 x 36","36 x 36","48 x 48","24 x 24","48 x 48","—"]
[null,null,null,null,null,null,null,null,"W8-7","Loose Gravel","36 x 36","36 x 36","36 x 36","—","24 x 24","48 x 48","—"]
[null,null,null,null,null,null,null,null,"W8-8","Rough Road","36 x 36","36 x 36","36 x 36","48 x 48","24 x 24","48 x 48","—"]
[null,null,null,null,null,null,null,null,"W8-9","Low Shoulder","36 x 36","36 x 36","36 x 36","48 x 48","24 x 24","48 x 48","—"]
[null,null,null,null,null,null,null,null,"W9-1L","Left Lane Ends","36 x 36","36 x 36","36 x 36","48 x 48","30 x 30","48 x 48","—"]
[null,null,null,null,null,null,null,null,"W9-1R","Right Lane Ends","36 x 36","36 x 36","36 x 36","48 x 48","30 x 30","48 x 48","—"]
[null,null,null,null,null,null,null,null,"W9-4","Lanes Merge","36 x 36","36 x 36","36 x 36","48 x 48","30 x 30","48 x 48","—"]
[null,null,null,null,null,null,null,null,"W9-5","Bicycle Lane Ends","30 x 30","30 x 30","—","—","—","—","—"]
[null,null,null,null,null,null,null,null,"W9-5a","Bicycles Merging","30 x 30","30 x 30","—","—","—","—","18 x 18"]
[null,null,null,null,null,null,null,null,"W9-7L","Left Lane For Exit Only","132 x 72","132 x 72","132 x 72","132 x 72","—","—","—"]
[null,null,null,null,null,null,null,null,"W9-7R","Right Lane For Exit Only","132 x 72","132 x 72","132 x 72","132 x 72","—","—","—"]
[null,null,null,null,null,null,null,null,"OM3L","Object Marker Type 3","12 x 36","12 x 36","—","—","—","—","6 x 18"]
[null,null,null,null,null,null,null,null,"OM3C","Object Marker Type 3","12 x 36","12 x 36","—","—","—","—","6 x 18"]
[null,null,null,null,null,null,null,null,"OM3R","Object Marker Type 3","12 x 36","12 x 36","—","—","—","—","6 x 18"]

{"sheet":"Sheet1","index":3,"n_rows":56,"n_cols":10,"rows_kept":56,"cut":false,"hidden":false,"merged":[]}
[]
[null,null,null,null,null,"D5-1","Rest Area XX Miles","66 x 36*","96 x 54*"]
[null,null,null,null,null,"D5-1a","Rest Area Next Right","78 x 36*","120 x 60* (F)","114 x 48* (E)"]
[null,null,null,null,null,"D5-2","Rest Area (with arrow)","66 x 36*","96 x 54*"]
[null,null,null,null,null,"D5-2a","Rest Area Gore","42 x 48*","78 x 78* (F)","66 x 72* (E)"]
[null,null,null,null,null,"D5-5","Rest Area (with horizontal arrow)","42 x 48*","—"]
[null,null,null,null,null,"D5-6","Next Rest Area XX Miles","60 x 48*","90 x 72*"]
[null,null,null,null,null,"D5-7","Rest Area Tourist Info Center XX Miles","90 x 72*","114 x 102* (F)","132 x 96* (E)"]
[null,null,null,null,null,"D5-8","Rest Area Tourist Info Center (with arrow)","84 x 72*","120 x 102* (F)","120 x 96* (E)"]
[null,null,null,null,null,"D5-11","Rest Area Tourist Info Center Next Right","90 x 72*","144 x 102* (F)","132 x 96* (E)"]
[null,null,null,null,null,"D5-12","Interstate Oasis","—","156 x 78"]
[null,null,null,null,null,"D5-12P","Interstate Oasis (plaque)","—","114 x 48"]
[null,null,null,null,null,"D5-13","Brake Check Area XX Miles","84 x 48","126 x 72"]
[null,null,null,null,null,"D5-14","Brake Check Area (with arrow)","78 x 60","96 x 72"]
[null,null,null,null,null,"D5-15","Chain-Up Area XX Miles","66 x 48","96 x 72"]
[null,null,null,null,null,"D5-16","Chain-Up Area (with arrow)","72 x 54","96 x 66"]
[null,null,null,null,null,"D9-1","Telephone","24 x 24","30 x 30"]
[null,null,null,null,null,"D9-2","Hospital","24 x 24","30 x 30"]
[null,null,null,null,null,"D9-3","Camping","24 x 24","30 x 30"]
[null,null,null,null,null,"D9-3a","Trailer Camping","24 x 24","30 x 30"]
[null,null,null,null,null,"D9-4","Litter Container","24 x 30","36 x 48"]
[null,null,null,null,null,"D9-6","Handicapped","24 x 24","30 x 30"]
[null,null,null,null,null,"D9-6P","Van Accessible (plaque)","18 x 9","—"]
[null,null,null,null,null,"D9-7","Gas","24 x 24","30 x 30"]
[null,null,null,null,null,"D9-8","Food","24 x 24","30 x 30"]
[null,null,null,null,null,"D9-9","Lodging","24 x 24","30 x 30"]
[null,null,null,null,null,"D9-10","Tourist Information","24 x 24","30 x 30"]
[null,null,null,null,null,"D9-11","Diesel Fuel","24 x 24","30 x 30"]
[null,null,null,null,null,"D9-11a","Alternative Fuel - Compressed Natural Gas","24 x 24","30 x 30"]
[null,null,null,null,null,"D9-11b","Electric Vehicle Charging","24 x 24","30 x 30"]
[null,null,null,null,null,"D9-11bP","Electric Vehicle Charging (plaque)","24 x 18","30 x 24"]
[null,null,null,null,null,"D9-11c","Alternative Fuel - Ethanol","24 x 24","30 x 30"]
[null,null,null,null,null,"D9-12","RV Sanitatary Station","24 x 24","30 x 30"]
[null,null,null,null,null,"D9-13","Emergency Medical Services","24 x 24","30 x 30"]
[null,null,null,null,null,"D9-13aP","Hospital (plaque)","24 x 12","30 x 12"]
[null,null,null,null,null,"D9-13bP","Ambulance Station (plaque)","24 x 12","30 x 15"]
[null,null,null,null,null,"D9-13cP","Emergency Medical Care (plaque)","24 x 18","30 x 24"]
[null,null,null,null,null,"D9-13dP","Trauma Center (plaque)","24 x 12","30 x 15"]
[null,null,null,null,null,"D9-14","Police","24 x 24","30 x 30"]
[null,null,null,null,null,"D9-15","Propane Gas","24 x 24","30 x 30"]
[null,null,null,null,null,"D9-16","Truck Parking","24 x 24","30 x 30"]
[null,null,null,null,null,"D9-17P","Next Services XX Miles (plaque)","102 x 24","156 x 30"]
[null,null,null,null,null,"D9-18","General Services (up to 6 symbols)","—","96 x 60"]
[null,null,null,null,null,"D9-18a","General Services","—","96 x 60"]
[null,null,null,null,null,"D9-18b","General Services (up to 6 symbols) with Action or Exit Information","108 x 84","132 x 114 (F)","132 x 108 (E)"]
[null,null,null,null,null,"D9-18c","General Services with Action or Exit Information","72 x 60**","132 x 108** (F)","108 x 84** (E)"]
[null,null,null,null,null,"D9-20","Pharmacy","24 x 24","30 x 30"]
[null,null,null,null,null,"D9-20aP","24-Hour (plaque)","24 x 12","30 x 12"]
[null,null,null,null,null,"D9-21","Telecommunication Device for the Deaf","24 x 24","30 x 30"]
[null,null,null,null,null,"D9-22","Wireless Internet","24 x 24","30 x 30"]
[null,null,null,null,null,"D12-1","Weather Information","84 x 48","132 x 84"]
[null,null,null,null,null,"D12-2","Carpool Information","60 x 42","96 x 66"]
[null,null,null,null,null,"D12-3","Channel 9 Monitored","84 x 48","132 x 84"]
[null,null,null,null,null,"D12-4","Emergency Call 911","66 x 30","96 x 48"]
[null,null,null,null,null,"D12-5","Travel Info Call 511 (pictograph)","42 x 60","66 x 78"]
[null,null,null,null,null,"D12-5a","Travel Info Call 511","48 x 36","66 x 48"]